Workbook

Sheet UEM
A1: MINISTÉRIO DA INTEGRAÇÃO E DO DESENVOLVIMENTO REGIONAL | J1: BDI serviç | K1: 1.2591
A2: COMPANHIA DE DESENVOLVIMENTO DOS VALES DO SÃO FRANCISCO E DO PARNAÍBA | J2: BDI fornec. | K2: 1.136
A3: SEDE
A4: PLANILHA ORÇAMENTÁRIA DE ESTIMATIVA GERAL PARA O ESTADO DO CEARÁ | H4: Base SINAPI-CE 03/2025 ORSE 02/2025
H5: Data: Maio/2025
A7: Item | B7: Base | C7: Código | D7: Descrição | E7: Unid. | F7: Quant. | G7: Valor (R$)
G8: Unit. (sem BDI) | H8: Unit. (com BDI) | I8: Total
A10: 9 | D10: UNIDADE DE EXTRAÇÃO DE MEL | I10: =SUM(I12,I15,I21,I28,I34,I36,I40,I43,I48,I54) -> 255782.05
A12: 9.1 | D12: SERVIÇOS PRELIMINARES | I12: =SUM(I13:I14) -> 538.06
A13: 9.2 | B13: sinapi | C13: 105009 | D13: =[1]CPU!$A$91 -> LOCAÇÃO DE OBRAS | E13: =[1]CPU!$I$91 -> m² | F13: =(7.89*2+9.6*2) -> 34.98 | G13: =J13 -> 10.75 | H13: =(G13*K$1) -> 13.535325 | I13: =ROUND(F13*H13,2) -> 473.47 | J13: 10.75
A14: 9.3 | B14: Sinapi | C14: 98525 | D14: LIMPEZA MECANIZADA DE CAMADA VEGETAL, VEGETAÇÃO E PEQUENAS ÁRVORES (DIÂMETRO DE TRONCO MENOR QUE 0,20 M), COM TRATOR DE ESTEIRAS. | E14: m² | F14: =9.56*7.891 -> 75.43796 | G14: =J14 -> 0.68 | H14: =(G14*K$1) -> 0.856188 | I14: =ROUND(F14*H14,2) -> 64.59 | J14: 0.68
A15: 9.4 | D15: MOVIMENTO DE TERRA | I15: =SUM(I16:I20) -> 2190.18 | J15: =G15 -> 0
A16: 9.5 | B16: Sinapi | C16: 101230 | D16: ESCAVAÇÃO VERTICAL A CÉU ABERTO, EM OBRAS DE INFRAESTRUTURA, INCLUINDO CARGA, DESCARGA E TRANSPORTE, EM SOLO DE 1ª CATEGORIA COM ESCAVADEIRA HIDRÁULICA (CAÇAMBA: 0,8 M³ / 111 HP) | E16: m³ | F16: =45.5+1.92+4.32+3 -> 54.74 | G16: =J16 -> 11.88 | H16: =(G16*K$1) -> 14.958108 | I16: =ROUND(F16*H16,2) -> 818.81 | J16: 11.88
A17: 9.6 | B17: Sinapi | C17: 100577 | D17: REGULARIZAÇÃO E COMPACTAÇÃO DE SUBLEITO DE SOLO PREDOMINANTEMENTE ARENOSO. | E17: m² | F17: =9.6*7.9*0.6 -> 45.504 | G17: 0.54 | H17: =(G17*K$1) -> 0.679914 | I17: =ROUND(F17*H17,2) -> 30.94 | J17: 0.54
A18: 9.7 | B18: Sinapi | C18: 96385 | D18: EXECUÇÃO E COMPACTAÇÃO DE ATERRO COM SOLO PREDOMINANTEMENTE ARGILOSO - EXCLUSIVE SOLO, ESCAVAÇÃO, CARGA E TRANSPORTE | E18: m³ | F18: 64.4 | G18: 13.28 | H18: 16.720848 | I18: =ROUND(F18*H18,2) -> 1076.82 | J18: 13.28
A19: 9.8 | B19: Sinapi | C19: 100574 | D19: ESPALHAMENTO DE MATERIAL COM TRATOR DE ESTEIRAS. | E19: m³ | F19: 19.05 | G19: 1.47 | H19: 1.850877 | I19: =ROUND(F19*H19,2) -> 35.26 | J19: 1.47
A20: 9.9 | B20: Sinapi | C20: 100973 | D20: CARGA, MANOBRA E DESCARGA DE SOLOS E MATERIAIS GRANULARES EM CAMINHÃO BASCULANTE 6 M³ - CARGA COM PÁ CARREGADEIRA (CAÇAMBA DE 1,7 A 2,8 M³ /128 HP) E DESCARGA LIVRE | E20: m³ | F20: 19.05 | G20: 9.52 | H20: 11.986632 | I20: =ROUND(F20*H20,2) -> 228.35 | J20: 9.52
A21: 9.10 | D21: FUNDAÇÕES/ ESTRUTURAS DE CONCRETO ARMADO | I21: =SUM(I22:I25) -> 5586.33
A22: 9.11 | B22: Sinapi | C22: 92802 | D22: CORTE E DOBRA DE AÇO CA-50, DIÂMETRO DE 8,0 MM | E22: kg | F22: 101.6 | G22: =J22 -> 11.24 | H22: =(G22*K$1) -> 14.152284 | I22: =ROUND(F22*H22,2) -> 1437.87 | J22: 11.24
A23: 9.12 | B23: Sinapi | C23: 94965 | D23: CONCRETO FCK = 25MPA, TRAÇO 1:2,3:2,7 (CIMENTO/ AREIA MÉDIA/ BRITA 1) - PREPARO MECÂNICO COM BETONEIRA 400 L. | E23: m³ | F23: =2.16+1.8 -> 3.96 | G23: 514.09 | H23: =(G23*K$1) -> 647.290719 | I23: =ROUND(F23*H23,2) -> 2563.27 | J23: 514.09
A24: 9.13 | B24: Sinapi | C24: 103673 | D24: LANÇAMENTO COM USO DE BOMBA, ADENSAMENTO E ACABAMENTO DE CONCRETO EM ESTRUTURAS. AF_02/2022 | E24: m³ | F24: 3.96 | G24: 44.59 | H24: 56.143269 | I24: =ROUND(F24*H24,2) -> 222.33 | J24: 44.59
A25: 9.14 | B25: Sinapi | C25: 97086 | D25: FABRICAÇÃO, MONTAGEM E DESMONTAGEM DE FORMA PARA RADIER, EM MADEIRA SERRADA, 4 UTILIZAÇÕES. | E25: m² | F25: 7.8 | G25: 138.77 | H25: 174.725307 | I25: =ROUND(F25*H25,2) -> 1362.86 | J25: 138.77
A26: 9.15 | D26: REVESTIMENTOS | I26: =SUM(I27:I27) -> 0 | J26: =G26 -> 0
A27: 9.16 | B27: Sinapi | C27: 98555 | D27: IMPERMEABILIZAÇÃO DE SUPERFÍCIE COM ARGAMASSA POLIMÉRICA / MEMBRANA ACRÍLICA, 3 DEMÃOS. | E27: m² | F27: 0 | G27: =(J27) -> 25.97 | H27: =(J27*K$1) -> 33.13772 | I27: =ROUND(F27*H27,2) -> 0 | J27: 11.89
A28: 9.17 | D28: ALVENARIAS, DIVISÓRIAS E FECHAMENTOS | I28: =SUM(I29:I33) -> 28003.05 | J28: 0
A29: 9.18 | B29: CPU | C29: CPU010 | D29: REVESTIMENTO DE PAREDES EM CHAPAS DE AÇO INOXIDÁVEL AISI 304 - APENAS INSTALAÇÃO | E29: m² | F29: 70.54 | G29: =J29 -> 47.168 | H29: =(G29*K$1) -> 59.3892288 | I29: =ROUND(F29*H29,2) -> 4189.32 | J29: =CPU!I210 -> 47.168
A30: 9.19 | B30: ORSE | C30: 10280/ORSE | D30: MANTA EM LÃ DE VIDRO | E30: m² | F30: 66.278 | G30: 15.05 | H30: 18.880225 | I30: 1251.34 | J30: 15.05
A31: 9.20 | B31: CPU | C31: CPU009 | D31: CHAPA XADREZ EM ALUMINIO PARA PISO e:3mm, INCLUSO REBITE PARA FIXAÇÃO - APENAS MÃO DE OBRA | E31: m² | F31: 29.9 | G31: 410.8353 | H31: =(G31*K$1) -> 517.2827262 | I31: =ROUND(F31*H31,2) -> 15466.75 | J31: =CPU!I196 -> 410.8353
A32: 9.21 | B32: Sinapi | C32: 96486 | D32: FORRO EM RÉGUAS DE PVC, LISO, PARA AMBIENTES COMERCIAIS, INCLUSIVE ESTRUTURA BIDIRECIONAL DE FIXAÇÃO | E32: m² | F32: 29.93 | G32: 80.52 | H32: 101.382732 | I32: =ROUND(F32*H32,2) -> 3034.39 | J32: 80.52
A33: 9.22 | B33: Sinapi | C33: 104723 | D33: PAREDE COM SISTEMA EM CHAPAS DE GESSO PARA DRYWALL, USO INTERNO, COM DUAS FACES DUPLAS E ESTRUTURA METÁLICA COM GUIAS DUPLAS PARA PAREDES COM ÁREA LÍQUIDA MENOR QUE 6 M2, COM VÃOS. | E33: m² | F33: 12.096 | G33: 266.66 | H33: 335.751606 | I33: =ROUND(F33*H33,2) -> 4061.25 | J33: 266.66
A34: 9.23 | D34: PINTURAS | I34: =SUM(I35:I35) -> 8394.73 | J34: =G34 -> 0
A35: 9.24 | B35: Sinapi | C35: 100751 | D35: PINTURA COM TINTA EPOXÍDICA DE ACABAMENTO PULVERIZADA SOBRE PERFIL METÁLICO EXECUTADO EM FÁBRICA (02 DEMÃOS). | E35: m² | F35: 170.3 | G35: =J35 -> 39.15 | H35: =(G35*K$1) -> 49.293765 | I35: =ROUND(F35*H35,2) -> 8394.73 | J35: 39.15
A36: 9.25 | D36: COBERTURAS | I36: =SUM(I37:I39) -> 41209.43 | J36: 0
A37: 9.26 | B37: ORSE | C37: 13874/ORSE | D37: ESTRUTURA METALICA P/ COBERTURA DE CRECHE PADRÃO 1 DO PADRÃO FNDE, EM LIGTH STEEL FRAME, COM PERFIS UE70 MONTANTES DE TUBO UE70, INCLUSIVE FORNECIMENTO E MONTAGEM. EXCLUSIVE TELHAS | E37: m² | F37: 96 | G37: =J37 -> 113.51 | H37: =(G37*K$1) -> 142.920441 | I37: =ROUND(F37*H37,2) -> 13720.36 | J37: 113.51
A38: 9.27 | B38: Sinapi | C38: 94216 | D38: TELHAMENTO COM TELHA METÁLICA TERMOACÚSTICA E = 30 MM, COM ATÉ 2 ÁGUAS, INCLUSO IÇAMENTO | E38: m² | F38: 96 | G38: =J38 -> 210.37 | H38: =(G38*K$1) -> 264.876867 | I38: =ROUND(F38*H38,2) -> 25428.18 | J38: 210.37
A39: 9.28 | B39: Sinapi | C39: 94228 | D39: CALHA EM CHAPA DE AÇO GALVANIZADO NÚMERO 24, DESENVOLVIMENTO DE 50 CM, INCLUSO TRANSPORTE VERTICAL. AF_07/2019 | E39: m | F39: =16*1.1 -> 17.6 | G39: 93 | H39: 117.0963 | I39: =ROUND(F39*H39,2) -> 2060.89 | J39: 93
A40: 9.29 | D40: CONSTRUÇÃO CIVIL | I40: =SUM(I41:I42) -> 8252.37
A41: 9.30 | B41: Sinapi | C41: 91341 | D41: PORTA EM ALUMÍNIO DE ABRIR TIPO VENEZIANA COM GUARNIÇÃO, FIXAÇÃO COM PARAFUSOS - FORNECIMENTO E INSTALAÇÃO. | E41: m² | F41: 5.04 | G41: =J41 -> 690.03 | H41: =(J41*K$1) -> 868.816773 | I41: =ROUND(F41*H41,2) -> 4378.84 | J41: 690.03
A42: 9.31 | B42: Sinapi | C42: 100674 | D42: CAIXILHO FIXO DE ALUMÍNIO PARA VIDRO (VIDRO INCLUSO), BATENTE/ REQUADRO DE 4 A 14 CM, SEM GUARNIÇÃO/ ALIZAR, FIXAÇÃO COM PARAFUSOS, VEDAÇÃO COM SILICONE, EXCLUSIVE CONTRAMARCO - FORNECIMENTO E INSTALAÇÃO. AF_11/2024 | E42: m² | F42: 3.75 | G42: 820.38 | H42: =(J42*K$1) -> 1032.940458 | I42: =ROUND(F42*H42,2) -> 3873.53 | J42: 820.38
A43: 9.32 | D43: INSTALAÇÕES PREDIAIS | I43: =SUM(I44:I47) -> 14529.89
A44: 9.33 | B44: CPU | C44: CPU001 | D44: =[1]CPU!$A$65 -> EXECUÇÃO DE INSTALAÇÕES HIDROSSANITÁRIAS, EXCLUSIVE EQUIPAMENTOS | E44: =[1]CPU!$I$78 -> cj | F44: 1 | G44: =J44 -> 3038 | H44: =(G44*K$1) -> 3825.1458 | I44: =ROUND(F44*H44,2) -> 3825.15 | J44: =CPU!I44 -> 3038
A45: 9.34 | B45: SINAPI | C45: 98052 | D45: TANQUE SÉPTICO CIRCULAR, EM CONCRETO PRÉ-MOLDADO, DIÂMETRO INTERNO = 1,10 M, ALTURA INTERNA = 2,50 M, VOLUME ÚTIL: 2138,2 L (PARA 5 CONTRIBUINTES). | E45: un | F45: 1 | G45: 2142.43 | H45: =(G45*K$1) -> 2697.533613 | I45: =ROUND(F45*H45,2) -> 2697.53 | J45: 2142.43
A46: 9.35 | B46: SINAPI | C46: 98062 | D46: SUMIDOURO CIRCULAR, EM CONCRETO PRÉ-MOLDADO, DIÂMETRO INTERNO = 1,88 M, ALTURA INTERNA = 2,00 M, ÁREA DE INFILTRAÇÃO: 13,1 M² (PARA 5 CONTRIBUINTES) | E46: un | F46: 1 | G46: 3177.47 | H46: 4000.752477 | I46: 4000.75 | J46: 3177.47
A47: 9.36 | B47: CPU | C47: CPU002 | D47: =[1]CPU!$A$78 -> EXECUÇÃO DE INSTALAÇÕES ELÉTRICAS, EXCLUSIVE EQUIPAMENTOS | E47: =[1]CPU!$I$78 -> cj | F47: 1 | G47: 3182 | H47: 4006.4562 | I47: 4006.46 | J47: =CPU!I57 -> 3182
A48: 9.37 | D48: SERVIÇOS DIVERSOS | I48: =SUM(I49:I53) -> 29297.38
A49: 9.38 | B49: CPU | C49: CPU003 | D49: =[1]CPU!$A$140 -> CORTE DE CONTAINER PARA ESQUADRIAS | E49: =[1]CPU!$I$140 -> m² | F49: 16.45 | G49: =J49 -> 203.37395 | H49: =(J49*K$1) -> 256.0681404 | I49: =ROUND(F49*H49,2) -> 4212.32 | J49: =CPU!I75 -> 203.37395
A50: 9.39 | B50: CPU | C50: CPU004 | D50: =[1]CPU!$A$182 -> MODIFICAÇÕES NO CONTAINER COM CORTE POR ESMERILHADEIRA | E50: =[1]CPU!$I$182 -> m | F50: 58.26 | G50: 106.828 | H50: =(J50*K$1) -> 134.5071348 | I50: 7836.39 | J50: =CPU!I117 -> 106.828
A51: 9.40 | B51: CPU | C51: CPU005 | D51: =[1]CPU!$A$200 -> MODIFICAÇÕES NO CONTAINER UNIÃO ATRAVÉS DO PROCESSO DE SOLDAGEM, INCLUSO IÇAMENTO DO CONTAINER | E51: =[1]CPU!$I$200 -> m | F51: 21.9 | G51: 357.088556 | H51: =(J51*K$1) -> 449.6102009 | I51: 9846.46 | J51: =CPU!I139 -> 357.088556
A52: 9.41 | B52: CPU | C52: CPU011 | D52: GUARDA-CORPO DE AÇO CARBONO, MONTANTES TUBULARES DE 1.1/2" ESPAÇADOS EM 0,75M, ALTURA APROXIMADA DE 0,90M, PREPARADO COM FUNDO E TINTA EPÓXI NA COR AMARELA | E52: m | F52: =0.75*2*3*1.1 -> 4.95 | G52: 510.557203 | H52: =G52*$K$1 -> 642.8425743 | I52: 3182.07 | J52: =CPU!I234 -> 510.557203
A53: 9.42 | B53: CPU | C53: CPU013 | D53: FORNECIMENTO E INSTALAÇÃO DE SUPORTE PARA CAIXA D'ÁGUA EM METALON | E53: un | F53: 1 | G53: 3351.708324 | H53: =G53*$K$1 -> 4220.135951 | I53: 4220.14 | J53: =CPU!I288 -> 3351.708324
A54: 9.43 | D54: MATERIAIS | I54: =SUM(I55:I116) -> 117780.63
A55: 9.44 | B55: Cotação | D55: CONTAINER DRY BOX 20 PÉS 6,1X2,21X2,6 (COMPXLARGXALTU) | E55: un | F55: 2 | G55: =J55 -> 19863 | H55: =(G55*K$2) -> 22564.368 | I55: =ROUND(F55*H55,2) -> 45128.74 | J55: =CPU!I251 -> 19863
A56: 9.45 | B56: Sinapi | C56: 89356 | D56: TUBO PVC, SOLDAVEL, DN 25 MM, AGUA FRIA (NBR-5648) | E56: m | F56: 12 | G56: 24.24 | H56: =(G56*K$2) -> 27.53664 | I56: 330.44 | J56: 24.24
A57: 9.46 | B57: Sinapi | C57: 89357 | D57: TUBO PVC, SOLDAVEL, DN 32 MM, AGUA FRIA (NBR-5648) | E57: m | F57: 18 | G57: 32.88 | H57: 37.35168 | I57: 672.33 | J57: 32.88
A58: 9.47 | B58: Sinapi | C58: 9835 | D58: TUBO PVC SERIE NORMAL, DN 40 MM, PARA ESGOTO PREDIAL (NBR 5688) | E58: m | F58: 3 | G58: 6.47 | H58: 7.34992 | I58: 22.05 | J58: 6.47
A59: 9.48 | B59: Sinapi | C59: 9838 | D59: TUBO PVC SERIE NORMAL, DN 50 MM, PARA ESGOTO PREDIAL (NBR 5688) | E59: m | F59: 20 | G59: 10.69 | H59: 12.14384 | I59: 242.88 | J59: 10.69
A60: 9.49 | B60: Sinapi | C60: 9836 | D60: TUBO PVC SERIE NORMAL, DN 100 MM, PARA ESGOTO PREDIAL (NBR 5688) | E60: m | F60: 1 | G60: 14.82 | H60: 16.83552 | I60: 16.84 | J60: 14.82
A61: 9.50 | B61: Sinapi | C61: 89362 | D61: JOELHO 90 GRAUS, PVC, SOLDÁVEL, DN 25MM, INSTALADO EM RAMAL OU SUB-RAMAL DE ÁGUA - FORNECIMENTO E INSTALAÇÃO. AF_06/2022 | E61: un | F61: 12 | G61: 9.79 | H61: 11.12144 | I61: 133.46 | J61: 9.79
A62: 9.51 | B62: Sinapi | C62: 89367 | D62: JOELHO 90 GRAUS, PVC, SOLDÁVEL, DN 32MM, INSTALADO EM RAMAL OU SUB-RAMAL DE ÁGUA - FORNECIMENTO E INSTALAÇÃO. AF_06/2022 | E62: un | F62: 10 | G62: 13.31 | H62: 15.12016 | I62: =ROUND(F62*H62,2) -> 151.2 | J62: 13.31
A63: 9.52 | B63: Sinapi | C63: 3515 | D63: JOELHO PVC, SOLDAVEL, COM BUCHA DE LATAO, 90 GRAUS, 20 MM X 1/2", PARA AGUA FRIA | E63: un | F63: 2 | G63: 6.18 | H63: 7.02048 | I63: =ROUND(F63*H63,2) -> 14.04 | J63: 6.18
A64: 9.53 | B64: Sinapi | C64: 7121 | D64: TE PVC, SOLDAVEL, COM BUCHA DE LATAO NA BOLSA CENTRAL, 90 GRAUS, 20 MM X 1/2", PARA AGUA FRIA PREDIAL | E64: un | F64: 2 | G64: 8.69 | H64: 9.87184 | I64: =ROUND(F64*H64,2) -> 19.74 | J64: 8.69
A65: 9.54 | B65: Sinapi | C65: 798 | D65: BUCHA DE REDUCAO PVC ROSCAVEL 3/4" X 1/2" | E65: un | F65: 2 | G65: 1.11 | H65: 1.26096 | I65: =ROUND(F65*H65,2) -> 2.52 | J65: 1.11
A66: 9.55 | B66: Sinapi | C66: 103957 | D66: BUCHA DE REDUÇÃO, CURTA, PVC, SOLDÁVEL, DN 32 X 25 MM, INSTALADO EM PRUMADA DE ÁGUA - FORNECIMENTO E INSTALAÇÃO. AF_06/2022 | E66: un | F66: 2 | G66: 4.91 | H66: 5.57776 | I66: =ROUND(F66*H66,2) -> 11.16 | J66: 4.91
A67: 9.56 | B67: Sinapi | C67: 3878 | D67: LUVA PVC, ROSCAVEL, 1 1/2", AGUA FRIA PREDIAL | E67: un | F67: 2 | G67: 11.34 | H67: 12.88224 | I67: 25.76 | J67: 11.34
A68: 9.57 | B68: Sinapi | C68: 4177 | D68: NIPLE DE FERRO GALVANIZADO, COM ROSCA BSP, DE 1/2" | E68: un | F68: 2 | G68: 5.3 | H68: 6.0208 | I68: 12.04 | J68: 5.3
A69: 9.58 | B69: Sinapi | C69: 89395 | D69: TE, PVC, SOLDÁVEL, DN 25MM, INSTALADO EM RAMAL OU SUB-RAMAL DE ÁGUA - FORNECIMENTO E INSTALAÇÃO. AF_06/2022 | E69: un | F69: 3 | G69: 13.47 | H69: 15.30192 | I69: 45.91 | J69: 13.47
A70: 9.59 | B70: Sinapi | C70: 89398 | D70: TE, PVC, SOLDÁVEL, DN 32MM, INSTALADO EM RAMAL OU SUB-RAMAL DE ÁGUA - FORNECIMENTO E INSTALAÇÃO. AF_06/2022 | E70: un | F70: 3 | G70: 18.53 | H70: 21.05008 | I70: 63.15 | J70: 18.53
A71: 9.60 | B71: Sinapi | C71: 97 | D71: ADAPTADOR PVC SOLDAVEL, COM FLANGE E ANEL DE VEDACAO, 32 MM X 1", PARA CAIXA D'AGUA | E71: un | F71: 4 | G71: 17.58 | H71: =G71*$K$2 -> 19.97088 | I71: 79.88 | J71: 17.58
A72: 9.61 | B72: Sinapi | C72: 11675 | D72: REGISTRO DE ESFERA, PVC, COM VOLANTE, VS, SOLDAVEL, DN 32 MM, | E72: un | F72: 4 | G72: 24.47 | H72: 27.79792 | I72: 111.19 | J72: 24.47
A73: 9.62 | B73: Sinapi | C73: 34637 | D73: CAIXA D'AGUA / RESERVATORIO EM POLIETILENO, 500 LITROS, COM TAMPA | E73: un | F73: 1 | G73: 296.26 | H73: 336.55136 | I73: 336.55 | J73: 296.26
A74: 9.63 | B74: Sinapi | C74: 94495 | D74: REGISTRO DE GAVETA BRUTO, LATÃO, ROSCÁVEL, 1" - FORNECIMENTO E INSTALAÇÃO. AF_08/2021 | E74: un | F74: 1 | G74: 65.24 | H74: 74.11264 | I74: 74.11 | J74: 65.24
A75: 9.64 | B75: Sinapi | C75: 94496 | D75: REGISTRO DE GAVETA BRUTO, LATÃO, ROSCÁVEL, 1 1/4" - FORNECIMENTO E INSTALAÇÃO. AF_08/2021 | E75: un | F75: 2 | G75: 88.88 | H75: 100.96768 | I75: 201.94 | J75: 88.88
A76: 9.65 | B76: Sinapi | C76: 7603 | D76: TORNEIRA DE METAL AMARELO, PARA TANQUE / JARDIM, DE PAREDE, SEM BICO, CANO CURTO, PADRAO POPULAR / USO GERA | E76: un | F76: 2 | G76: 37.08 | H76: 42.12288 | I76: 84.25 | J76: 37.08
A77: 9.66 | B77: Sinapi | C77: 94795 | D77: TORNEIRA DE BOIA PARA CAIXA D'ÁGUA, ROSCÁVEL, 1/2" - FORNECIMENTO E INSTALAÇÃO. AF_08/2021 | E77: un | F77: 1 | G77: 32.9 | H77: 37.3744 | I77: 37.37 | J77: 32.9
A78: 9.67 | B78: Sinapi | C78: 20080 | D78: ADESIVO PLASTICO PARA PVC, FRASCO COM 175 GR | E78: un | F78: 2 | G78: 21.72 | H78: 24.67392 | I78: =ROUND(F78*H78,2) -> 49.35 | J78: 21.72
A79: 9.68 | B79: Sinapi | C79: 3143 | D79: FITA VEDA ROSCA 18MMX25M | E79: un | F79: 1 | G79: 39.77 | H79: 45.17872 | I79: =ROUND(F79*H79,2) -> 45.18 | J79: 39.77
A80: 9.69 | B80: Sinapi | C80: 35277 | D80: CAIXA DE GORDURA EM PVC, DIAMETRO MINIMO 300 MM, DIAMETRO DE SAIDA 100 MM CAPACIDADE APROXIMADA 18 LITROS, COM TAMPA E CESTO | E80: un | F80: 1 | G80: 401.85 | H80: 456.5016 | I80: =ROUND(F80*H80,2) -> 456.5 | J80: 401.85
A81: 9.70 | B81: Sinapi | C81: 11735 | D81: PROLONGADOR PAR CAIXA DE GORDURA E INSPEÇÃO DN300, PVC | E81: un | F81: 1 | G81: 10.01 | H81: 11.37136 | I81: =ROUND(F81*H81,2) -> 11.37 | J81: 10.01
A82: 9.71 | B82: Sinapi | C82: 89482 | D82: CAIXA SIFONADA, PVC, DN 100 X 100 X 50 MM, FORNECIDA E INSTALADA EM RAMAIS DE ENCAMINHAMENTO DE ÁGUA PLUVIAL. AF_06/2022 | E82: un | F82: 5 | G82: 42.11 | H82: 47.83696 | I82: =ROUND(F82*H82,2) -> 239.18 | J82: 42.11
A83: 9.72 | B83: Sinapi | C83: 94679 | D83: CURVA 90 GRAUS, PVC, SOLDÁVEL, DN 50 MM, INSTALADO EM RESERVAÇÃO DE ÁGUA DE EDIFICAÇÃO QUE POSSUA RESERVATÓRIO DE FIBRA/FIBROCIMENTO FORNECIMENTO E INSTALAÇÃO. AF_06/2016 | E83: un | F83: 11 | G83: 22.49 | H83: 25.54864 | I83: 281.04 | J83: 22.49
A84: 9.73 | B84: Sinapi | C84: 89504 | D84: CURVA 45 GRAUS, PVC, SOLDÁVEL, DN 50MM, INSTALADO EM PRUMADA DE ÁGUA - FORNECIMENTO E INSTALAÇÃO. AF_06/2022 | E84: un | F84: 3 | G84: 18.24 | H84: 20.72064 | I84: 62.16 | J84: 18.24
A85: 9.74 | B85: Sinapi | C85: 89724 | D85: JOELHO 90 GRAUS, PVC, SERIE NORMAL, ESGOTO PREDIAL, DN 40 MM, JUNTA SOLDÁVEL, FORNECIDO E INSTALADO EM RAMAL DE DESCARGA OU RAMAL DE ESGOTO SANITÁRIO. AF_08/2022 | E85: un | F85: 1 | G85: 10.54 | H85: 11.97344 | I85: 11.97 | J85: 10.54
A86: 9.75 | B86: Sinapi | C86: 89731 | D86: JOELHO 90 GRAUS, PVC, SERIE NORMAL, ESGOTO PREDIAL, DN 50 MM, JUNTA ELÁSTICA, FORNECIDO E INSTALADO EM RAMAL DE DESCARGA OU RAMAL DE ESGOTO SANITÁRIO. AF_08/2022 | E86: un | F86: 8 | G86: 16.99 | H86: 19.30064 | I86: 154.41 | J86: 16.99
A87: 9.76 | B87: Sinapi | C87: 89563 | D87: JUNÇÃO SIMPLES, PVC, SERIE R, ÁGUA PLUVIAL, DN 50 MM, JUNTA ELÁSTICA, FORNECIDO E INSTALADO EM RAMAL DE ENCAMINHAMENTO. AF_06/2022 | E87: un | F87: 2 | G87: 37.74 | H87: 42.87264 | I87: 85.75 | J87: 37.74
A88: 9.77 | B88: Sinapi | C88: 103995 | D88: LUVA, PVC, SOLDÁVEL, DN 50MM, INSTALADO EM RAMAL DE DISTRIBUIÇÃO DE ÁGUA - FORNECIMENTO E INSTALAÇÃO. AF_06/2022 | E88: un | F88: 17 | G88: 15 | H88: 17.04 | I88: 289.68 | J88: 15
A89: 9.78 | B89: Sinapi | C89: 104345 | D89: JUNÇÃO DE REDUÇÃO INVERTIDA, PVC, SÉRIE NORMAL, ESGOTO PREDIAL, DN 100 X 50 MM, JUNTA ELÁSTICA, FORNECIDO E INSTALADO EM RAMAL DE DESCARGA OU RAMAL DE ESGOTO SANITÁRIO. AF_08/2022 | E89: un | F89: 2 | G89: 47.19 | H89: 53.60784 | I89: 107.22 | J89: 47.19
A90: 9.79 | B90: Sinapi | C90: 20043 | D90: REDUÇÃO EXCÊNTRICA, PVC, ÁGUA PLUVIAL, DN 100 X 50 MM, LINHA NORMAL | E90: un | F90: 2 | G90: 8.92 | H90: 10.13312 | I90: =ROUND(F90*H90,2) -> 20.27 | J90: 8.92
A91: 9.80 | B91: Sinapi | C91: 86883 | D91: SIFÃO DO TIPO FLEXÍVEL EM PVC 1 X 1.1/2 - FORNECIMENTO E INSTALAÇÃO. AF_01/2020 | E91: un | F91: 1 | G91: 13.15 | H91: 14.9384 | I91: 14.94 | J91: 13.15
A92: 9.81 | B92: Sinapi | C92: 86941 | D92: LAVATÓRIO LOUÇA BRANCA COM COLUNA, 45 X 55CM OU EQUIVALENTE, PADRÃO MÉDIO, INCLUSO SIFÃO TIPO GARRAFA, VÁLVULA E ENGATE FLEXÍVEL DE 40CM EMMETAL CROMADO, COM TORNEIRA CROMADA DE MESA, PADRÃO MÉDIO - FORNECIMENTO E INSTALAÇÃO. | E92: un | F92: 1 | G92: 900.78 | H92: 1023.28608 | I92: 1023.29 | J92: 900.78
A93: 9.82 | B93: Sinapi | C93: 86936 | D93: CUBA DE EMBUTIR DE AÇO INOXIDÁVEL MÉDIA, INCLUSO VÁLVULA TIPO AMERICANA E SIFÃO TIPO GARRAFA EM METAL CROMADO - FORNECIMENTO E INSTALAÇÃO | E93: un | F93: 1 | G93: 505.45 | H93: 574.1912 | I93: 574.19 | J93: 505.45
A94: 9.83 | B94: Cotação | D94: LAVADOR DE BOTAS EM AÇO INOXIDÁVEL AISI 304 | E94: un | F94: 1 | G94: 3080.056667 | H94: 3498.944373 | I94: 3498.94 | J94: =O94 -> 3080.056667 | L94: 4192.93 | M94: 2442.24 | N94: 2605 | O94: =AVERAGE(L94:N94) -> 3080.056667
A95: 9.84 | B95: Sinapi | C95: 86906 | D95: TORNEIRA CROMADA DE MESA, 1/2 OU 3/4, PARA LAVATÓRIO, PADRÃO POPULAR - FORNECIMENTO E INSTALAÇÃO. AF_01/2020 | E95: un | F95: 2 | G95: 72 | H95: 81.792 | I95: 163.58 | J95: 72
A96: 9.85 | B96: Sinapi | C96: 94768 | D96: ADAPTADOR COM FLANGE E ANEL DE VEDAÇÃO, CPVC, ROSCÁVEL, DN 42 MM, INSTALADO EM RESERVAÇÃO DE ÁGUA DE EDIFICAÇÃO QUE POSSUA RESERVATÓRIO DE FIBRA/FIBROCIMENTO - FORNECIMENTO E INSTALAÇÃO. AF_06/2016 | E96: un | F96: 1 | G96: 73.77 | H96: 83.80272 | I96: 83.8 | J96: 73.77
A97: 9.86 | B97: Cotação | D97: PEDALEIRA PARA ACIONAMENTO TORNEIRA, ROSCA 1/2" | E97: un | F97: 2 | G97: 145.3966667 | H97: 165.1706133 | I97: 330.34 | J97: =O97 -> 145.3966667 | L97: 133.4 | M97: 137.89 | N97: 164.9 | O97: =AVERAGE(L97:N97) -> 145.3966667
A98: 9.87 | B98: Sinapi | C98: 91924 | D98: CABO DE COBRE FLEXÍVEL ISOLADO, 1,5 MM², ANTI-CHAMA 450/750 V, PARA CIRCUITOS TERMINAIS - FORNECIMENTO E INSTALAÇÃO. AF_03/2023 | E98: m | F98: 49 | G98: 3 | H98: 3.408 | I98: 166.99 | J98: 3
A99: 9.88 | B99: Sinapi | C99: 91926 | D99: CABO DE COBRE, RIGIDO, CLASSE 2, ISOLACAO EM PVC/A, ANTICHAMA BWF-B, 1 CONDUTOR, 450/750 V, SECAO NOMINAL 2,5 MM2 | E99: m | F99: 180 | G99: 4.33 | H99: 4.91888 | I99: 885.4 | J99: 4.33
A100: 9.89 | B100: Sinapi | C100: 91952 | D100: INTERRUPTOR SIMPLES (1 MÓDULO), 10A/250V, SEM SUPORTE E SEM PLACA - FORNECIMENTO E INSTALAÇÃO. AF_03/2023 | E100: un | F100: 4 | G100: 20.05 | H100: 22.7768 | I100: 91.11 | J100: 20.05
A101: 9.90 | B101: Sinapi | C101: 91990 | D101: TOMADA ALTA DE EMBUTIR (1 MÓDULO), 2P+T 10 A, SEM SUPORTE E SEM PLACA - FORNECIMENTO E INSTALAÇÃO. AF_03/2023 | E101: un | F101: 1 | G101: 36.29 | H101: 41.22544 | I101: 41.23 | J101: 36.29
A102: 9.91 | B102: ORSE | C102: 11054/ORSE | D102: CAIXA METÁLICA COM UMA TOMADA 2P+T PARA INSTALAÇÃO APARENTE | E102: un | F102: 10 | G102: 27.17 | H102: 30.1587 | I102: 301.59 | J102: 27.17
A103: 9.92 | B103: Sinapi | C103: 95777 | D103: CONDULETE DE ALUMÍNIO, TIPO B, PARA ELETRODUTO DE AÇO GALVANIZADO DN 20 MM (3/4''), APARENTE - FORNECIMENTO E INSTALAÇÃO. AF_10/2022 | E103: un | F103: 5 | G103: 26.85 | H103: 30.5016 | I103: 152.51 | J103: 26.85
A104: 9.93 | B104: Sinapi | C104: 101890 | D104: DISJUNTOR MONOPOLAR TIPO NEMA, CORRENTE NOMINAL DE 10 ATÉ 30A - FORNECIMENTO E INSTALAÇÃO. AF_10/2020 | E104: un | F104: 1 | G104: 16.31 | H104: 18.52816 | I104: 18.53 | J104: 16.31
A105: 9.94 | B105: Sinapi | C105: 101892 | D105: DISJUNTOR MONOPOLAR TIPO NEMA, CORRENTE NOMINAL DE 10 ATÉ 50A - FORNECIMENTO E INSTALAÇÃO. AF_10/2020 | E105: un | F105: 7 | G105: 71.17 | H105: =G105*$K$2 -> 80.84912 | I105: 565.94 | J105: 71.17
A106: 9.95 | B106: ORSE | C106: 07943/ORSE | D106: DISJUNTOR BIPOLAR DR 25A - DISPOSITIVO DIFERENCIAL RESIDUAL, TIPO AC, 30MA | E106: un | F106: 3 | G106: 278.5 | H106: 309.135 | I106: 927.41 | J106: 278.5
A107: 9.96 | B107: Sinapi | C107: 93661 | D107: DISJUNTOR BIPOLAR TIPO DIN, CORRENTE NOMINAL DE 16A - FORNECIMENTO E INSTALAÇÃO. AF_10/2020 | E107: un | F107: 2 | G107: 57.63 | H107: 65.46768 | I107: 130.94 | J107: 57.63
A108: 9.97 | B108: Sinapi | C108: 93665 | D108: DISJUNTOR BIPOLAR TIPO DIN, CORRENTE NOMINAL DE 40A - FORNECIMENTO E INSTALAÇÃO. AF_10/2020 | E108: un | F108: 1 | G108: 67.78 | H108: 76.99808 | I108: 77 | J108: 67.78
A109: 9.98 | B109: ORSE | C109: 4878/ORSE | D109: PONTO DE LUZ EM TETO OU PAREDE, APARENTE SEM ELETRODUTO | E109: un | F109: 5 | G109: 65.23 | H109: 72.4053 | I109: 362.03 | J109: 65.23
A110: 9.99 | B110: ORSE | C110: 14448/ORSE | D110: ELETRODUTO DE AÇO GALVANIZADO, CLASSE LEVE, DN 25 MM (1") | E110: m | F110: 50 | G110: 33.67 | H110: 37.3737 | I110: 1868.69 | J110: 33.67
A111: 9.100 | B111: Sinapi | C111: 1879 | D111: CURVA 90° PVC ELETRODUTO ROSCAVEL 3/4" | E111: un | F111: 16 | G111: 2.23 | H111: 2.53328 | I111: 40.53 | J111: 2.23
A112: 9.101 | B112: Sinapi | C112: 39128 | D112: ABRAÇADEIRA GALVANIZADA "D" PARA ELETRODUTO 3/4" COM CUNHA | E112: un | F112: 50 | G112: 3.43 | H112: 3.89648 | I112: 194.82 | J112: 3.43
A113: 9.102 | B113: Sinapi | C113: 101878 | D113: QUADRO DE DISTRIBUIÇÃO DE ENERGIA EM CHAPA DE AÇO GALVANIZADO, DE SOBREPOR, COM BARRAMENTO TRIFÁSICO, PARA 18 DISJUNTORES DIN 100A - FORNECIMENTO E INSTALAÇÃO. AF_10/2020 | E113: un | F113: 1 | G113: 540.56 | H113: 614.07616 | I113: 614.08 | J113: 540.56
A114: 9.103 | B114: Sinapi | C114: 100954 | D114: TRANSPORTE COM CAMINHÃO CARROCERIA COM GUINDAUTO (MUNCK), MOMENTO MÁXIMO DE CARGA 11,7 TM, EM VIA INTERNA (DENTRO DO CANTEIRO - UNIDADE: TXKM). AF_07/2020 | E114: TXKM | F114: 800 | G114: 9.18 | H114: 10.42848 | I114: =ROUND(F114*H114,2) -> 8342.78 | J114: 9.18
A115: 9.104 | B115: CPU | C115: CPU006 | D115: REVESTIMENTO DE PAREDES EM CHAPAS DE AÇO INOXIDÁVEL AISI 304 - APENAS INSTALAÇÃO | E115: m² | F115: 70.54 | G115: 365.796 | H115: 415.544256 | I115: =ROUND(F115*H115,2) -> 29312.49 | J115: =CPU!I151 -> 365.796
A116: 9.105 | B116: CPU | C116: CPU008 | D116: CHAPA XADREZ EM ALUMINIO PARA PISO e:3mm, INCLUSO REBITE PARA FIXAÇÃO - APENAS MÃO DE OBRA | E116: m² | F116: 29.9 | G116: 540.7064 | H116: 614.2424704 | I116: =ROUND(F116*H116,2) -> 18365.85 | J116: =CPU!I182 -> 540.7064

Sheet UBF
A1: MINISTÉRIO DA INTEGRAÇÃO E DO DESENVOLVIMENTO REGIONAL | J1: BDI serviç | K1: 1.2591
A2: COMPANHIA DE DESENVOLVIMENTO DOS VALES DO SÃO FRANCISCO E DO PARNAÍBA | J2: BDI fornec. | K2: 1.136
A3: SEDE
A4: PLANILHA ORÇAMENTÁRIA DE ESTIMATIVA GERAL PARA O ESTADO DO CEARÁ | H4: Base SINAPI-CE 03/2025 ORSE 02/2025
H5: Data: Maio/2025
A7: Item | B7: Base | C7: Código | D7: Descrição | E7: Unid. | F7: Quant. | G7: Valor (R$)
G8: Unit. (sem BDI) | H8: Unit. (com BDI) | I8: Total
A10: 10 | D10: UNIDADE DE BENEFICIAMENTO DE FRUTOS | I10: =SUM(I11,I14,I20,I25,I31,I33,I37,I43,I48,I55) -> 377504.3821
A11: 10.1 | D11: SERVIÇOS PRELIMINARES | I11: =SUM(I12:I13) -> 805.2
A12: 10.2 | B12: sinapi | C12: 105009 | D12: =[1]CPU!$A$91 -> LOCAÇÃO DE OBRAS | E12: m | F12: =15+10+15+10 -> 50 | G12: =J12 -> 10.75 | H12: =(G12*K$1) -> 13.535325 | I12: =ROUND(F12*H12,2) -> 676.77 | J12: 10.75
A13: 10.3 | B13: Sinapi | C13: 98525 | D13: LIMPEZA MECANIZADA DE CAMADA VEGETAL, VEGETAÇÃO E PEQUENAS ÁRVORES (DIÂMETRO DE TRONCO MENOR QUE 0,20 M), COM TRATOR DE ESTEIRAS. | E13: m² | F13: =15*10 -> 150 | G13: =J13 -> 0.68 | H13: =(G13*K$1) -> 0.856188 | I13: =ROUND(F13*H13,2) -> 128.43 | J13: 0.68
A14: 10.4 | D14: MOVIMENTO DE TERRA | I14: =SUM(I15:I19) -> 3212.98
A15: 10.5 | B15: Sinapi | C15: 101230 | D15: ESCAVAÇÃO VERTICAL A CÉU ABERTO, EM OBRAS DE INFRAESTRUTURA, INCLUINDO CARGA, DESCARGA E TRANSPORTE, EM SOLO DE 1ª CATEGORIA COM ESCAVADEIRA HIDRÁULICA (CAÇAMBA: 0,8 M³ / 111 HP) | E15: m³ | F15: 54.76 | G15: =J15 -> 11.88 | H15: =G15*$K$1 -> 14.958108 | I15: =ROUND(F15*H15,2) -> 819.11 | J15: 11.88
A16: 10.6 | B16: Sinapi | C16: 100577 | D16: REGULARIZAÇÃO E COMPACTAÇÃO DE SUBLEITO DE SOLO PREDOMINANTEMENTE ARENOSO. | E16: m² | F16: 150 | G16: 0.54 | H16: =G16*$K$1 -> 0.679914 | I16: =ROUND(F16*H16,2) -> 101.99 | J16: 0.54
A17: 10.7 | B17: Sinapi | C17: 96385 | D17: EXECUÇÃO E COMPACTAÇÃO DE ATERRO COM SOLO PREDOMINANTEMENTE ARGILOSO - EXCLUSIVE SOLO, ESCAVAÇÃO, CARGA E TRANSPORTE | E17: m³ | F17: 75 | G17: 13.28 | H17: =G17*$K$1 -> 16.720848 | I17: =ROUND(F17*H17,2) -> 1254.06 | J17: 13.28
A18: 10.8 | B18: Sinapi | C18: 100574 | D18: ESPALHAMENTO DE MATERIAL COM TRATOR DE ESTEIRAS. | E18: m³ | F18: 75 | G18: 1.47 | H18: =G18*$K$1 -> 1.850877 | I18: =ROUND(F18*H18,2) -> 138.82 | J18: 1.47
A19: 10.9 | B19: Sinapi | C19: 100973 | D19: CARGA, MANOBRA E DESCARGA DE SOLOS E MATERIAIS GRANULARES EM CAMINHÃO BASCULANTE 6 M³ - CARGA COM PÁ CARREGADEIRA (CAÇAMBA DE 1,7 A 2,8 M³ /128 HP) E DESCARGA LIVRE | E19: m³ | F19: 75 | G19: 9.52 | H19: =G19*$K$1 -> 11.986632 | I19: =ROUND(F19*H19,2) -> 899 | J19: 9.52
A20: 10.10 | D20: FUNDAÇÕES/ ESTRUTURAS DE CONCRETO ARMADO | I20: =SUM(I21:I24) -> 14759.11205
A21: 10.11 | B21: Sinapi | C21: 92802 | D21: CORTE E DOBRA DE AÇO CA-50, DIÂMETRO DE 8,0 MM | E21: kg | F21: 101.6 | G21: =J21 -> 11.24 | H21: =G21*K1 -> 14.152284 | I21: =H21*F21 -> 1437.872054 | J21: 11.24
A22: 10.12 | B22: Sinapi | C22: 94965 | D22: CONCRETO FCK = 25MPA, TRAÇO 1:2,3:2,7 (CIMENTO/ AREIA MÉDIA/ BRITA 1) - PREPARO MECÂNICO COM BETONEIRA 400 L. | E22: m³ | F22: 17 | G22: 514.09 | H22: =G22*K1 -> 647.290719 | I22: =ROUND(F22*H22,2) -> 11003.94 | J22: 514.09
A23: 10.13 | B23: Sinapi | C23: 103673 | D23: LANÇAMENTO COM USO DE BOMBA, ADENSAMENTO E ACABAMENTO DE CONCRETO EM ESTRUTURAS. AF_02/2022 | E23: m³ | F23: 17 | G23: 44.59 | H23: =G23*K1 -> 56.143269 | I23: =ROUND(F23*H23,2) -> 954.44 | J23: 44.59
A24: 10.14 | B24: Sinapi | C24: 97086 | D24: FABRICAÇÃO, MONTAGEM E DESMONTAGEM DE FORMA PARA RADIER, EM MADEIRA SERRADA, 4 UTILIZAÇÕES. | E24: m² | F24: 7.8 | G24: 138.77 | H24: =G24*K1 -> 174.725307 | I24: =ROUND(F24*H24,2) -> 1362.86 | J24: 138.77
A25: 10.15 | D25: ALVENARIAS, DIVISÓRIAS E FECHAMENTOS | I25: =SUM(I26:I30) -> 61178.93
A26: 10.16 | B26: CPU | C26: CPU010 | D26: REVESTIMENTO DE PAREDES EM CHAPAS DE AÇO INOXIDÁVEL AISI 304 - APENAS INSTALAÇÃO | E26: m² | F26: 160.29 | G26: 47.168 | H26: =(G26*K$1) -> 59.3892288 | I26: =ROUND(F26*H26,2) -> 9519.5 | J26: =CPU!I207 -> 47.168
A27: 10.17 | B27: ORSE | C27: 9854 | D27: REVESTIMENTO TERMICO NAS PAREDES EXTERNAS COM LÃ DE VIDRO | E27: m² | F27: 134.78 | G27: 15.05 | H27: =(G27*K$1) -> 18.949455 | I27: =ROUND(F27*H27,2) -> 2554.01 | J27: 15.05
A28: 10.18 | B28: CPU | C28: CPU009 | D28: CHAPA XADREZ EM ALUMINIO PARA PISO e:3mm, INCLUSO REBITE PARA FIXAÇÃO - APENAS INSTALAÇÃO | E28: m² | F28: 56.544 | G28: 410.8353 | H28: 517.2827262 | I28: =ROUND(F28*H28,2) -> 29249.23 | J28: =CPU!I193 -> 410.8353
A29: 10.19 | B29: Sinapi | C29: 104723 | D29: PAREDE COM SISTEMA EM CHAPAS DE GESSO PARA DRYWALL, USO INTERNO, COM DUAS FACES DUPLAS E ESTRUTURA METÁLICA COM GUIAS DUPLAS PARA PAREDES COM ÁREA LÍQUIDA MENOR QUE 6 M2, COM VÃOS. | E29: m² | F29: 42.8 | G29: 266.66 | H29: 335.751606 | I29: =ROUND(F29*H29,2) -> 14370.17 | J29: 266.66
A30: 10.20 | B30: Sinapi | C30: 96486 | D30: FORRO EM RÉGUAS DE PVC, LISO, PARA AMBIENTES COMERCIAIS, INCLUSIVE ESTRUTURA BIDIRECIONAL DE FIXAÇÃO | E30: m² | F30: 54.112 | G30: 80.52 | H30: 101.382732 | I30: 5486.02 | J30: 80.52
A31: 10.21 | D31: PINTURAS | I31: =SUM(I32:I32) -> 13008.62 | J31: =G31 -> 0
A32: 10.22 | B32: Sinapi | C32: 100751 | D32: PINTURA COM TINTA EPOXÍDICA DE ACABAMENTO PULVERIZADA SOBRE PERFIL METÁLICO EXECUTADO EM FÁBRICA (02 DEMÃOS). | E32: m² | F32: 263.9 | G32: 39.15 | H32: =(G32*K$1) -> 49.293765 | I32: =ROUND(F32*H32,2) -> 13008.62 | J32: 39.15
A33: 10.23 | D33: COBERTURAS | I33: =SUM(I34:I36) -> 42243.14 | J33: 0
A34: 10.24 | B34: ORSE | C34: 13874/ORSE | D34: ESTRUTURA METALICA P/ COBERTURA DE CRECHE PADRÃO 1 DO PADRÃO FNDE, EM LIGTH STEEL FRAME, COM PERFIS UE70 MONTANTES DE TUBO UE70, INCLUSIVE FORNECIMENTO E MONTAGEM. EXCLUSIVE TELHAS | E34: m² | F34: 98.42 | G34: =J34 -> 113.51 | H34: =(G34*K$1) -> 142.920441 | I34: =ROUND(F34*H34,2) -> 14066.23 | J34: 113.51
A35: 10.25 | B35: Sinapi | C35: 94216 | D35: TELHAMENTO COM TELHA METÁLICA TERMOACÚSTICA E = 30 MM, COM ATÉ 2 ÁGUAS, INCLUSO IÇAMENTO | E35: m² | F35: 98.42 | G35: 210.37 | H35: =G35*K1 -> 264.876867 | I35: =ROUND(F35*H35,2) -> 26069.18 | J35: 210.37
A36: 10.26 | B36: Sinapi | C36: 94228 | D36: CALHA EM CHAPA DE AÇO GALVANIZADO NÚMERO 24, DESENVOLVIMENTO DE 50 CM, INCLUSO TRANSPORTE VERTICAL. AF_07/2019 | E36: m | F36: 18 | G36: 93 | H36: =(J36*K$1) -> 117.0963 | I36: =ROUND(F36*H36,2) -> 2107.73 | J36: 93
A37: 10.27 | D37: CONSTRUÇÃO CIVIL | I37: =SUM(I38:I42) -> 26287.61 | J37: 0
A38: 10.28 | B38: Sinapi | C38: 100702 | D38: PORTA DE CORRER DE ALUMÍNIO, COM DUAS FOLHAS PARA VIDRO, INCLUSO VIDRO LISO INCOLOR, FECHADURA E PUXADOR, SEM ALIZAR. | E38: m² | F38: 4.85 | G38: 474.12 | H38: =(J38*K$1) -> 596.964492 | I38: =ROUND(F38*H38,2) -> 2895.28 | J38: 474.12
A39: 10.29 | B39: Sinapi | C39: 91341 | D39: PORTA EM ALUMÍNIO DE ABRIR TIPO VENEZIANA COM GUARNIÇÃO, FIXAÇÃO COM PARAFUSOS - FORNECIMENTO E INSTALAÇÃO. | E39: m² | F39: 3.8 | G39: 690.03 | H39: =(J39*K$1) -> 868.816773 | I39: =ROUND(F39*H39,2) -> 3301.5 | J39: 690.03
A40: 10.30 | B40: Sinapi | C40: 100674 | D40: CAIXILHO FIXO DE ALUMÍNIO PARA VIDRO (VIDRO INCLUSO), BATENTE/ REQUADRO DE 4 A 14 CM, SEM GUARNIÇÃO/ ALIZAR, FIXAÇÃO COM PARAFUSOS, VEDAÇÃO COM SILICONE, EXCLUSIVE CONTRAMARCO - FORNECIMENTO E INSTALAÇÃO. AF_11/2024 | E40: m² | F40: 8.85 | G40: 820.38 | H40: =(J40*K$1) -> 1032.940458 | I40: =ROUND(F40*H40,2) -> 9141.52 | J40: 820.38
A41: 10.31 | B41: CPU | C41: CPU007 | D41: REVESTIMENTO CERÂMICO PARA PISO COM PLACAS TIPO ESMALTADA DE DIMENSÕES 45x45cm COM ARGAMASSA AC III | E41: m² | F41: 60 | G41: 107.735625 | H41: =(J41*K$1) -> 135.6499254 | I41: =ROUND(F41*H41,2) -> 8139 | J41: =CPU!I170 -> 107.735625
A42: 10.32 | B42: Sinapi | C42: 94228 | D42: CALHA EM CHAPA DE AÇO GALVANIZADO NÚMERO 24, DESENVOLVIMENTO DE 50 CM, INCLUSO TRANSPORTE VERTICAL. AF_07/2019 | E42: m | F42: 24 | G42: 93 | H42: =(J42*K$1) -> 117.0963 | I42: =ROUND(F42*H42,2) -> 2810.31 | J42: 93
A43: 10.33 | D43: INSTALAÇÕES PREDIAIS | I43: =SUM(I44:I47) -> 14529.89 | J43: 0
A44: 10.34 | B44: CPU | C44: CPU001 | D44: =[2]CPU!$A$65 -> EXECUÇÃO DE INSTALAÇÕES HIDROSSANITÁRIAS, EXCLUSIVE EQUIPAMENTOS | E44: =[2]CPU!$I$78 -> cj | F44: 1 | G44: 3038 | H44: =(G44*K$1) -> 3825.1458 | I44: =ROUND(F44*H44,2) -> 3825.15 | J44: =CPU!I44 -> 3038
A45: 10.35 | B45: CPU | C45: CPU002 | D45: =[2]CPU!$A$78 -> EXECUÇÃO DE INSTALAÇÕES ELÉTRICAS, EXCLUSIVE EQUIPAMENTOS | E45: =[2]CPU!$I$78 -> cj | F45: 1 | G45: 3182 | H45: =(G45*K$1) -> 4006.4562 | I45: =ROUND(F45*H45,2) -> 4006.46 | J45: =CPU!I57 -> 3182
A46: 10.36 | B46: SINAPI | C46: 98052 | D46: TANQUE SÉPTICO CIRCULAR, EM CONCRETO PRÉ-MOLDADO, DIÂMETRO INTERNO = 1,10 M, ALTURA INTERNA = 2,50 M, VOLUME ÚTIL: 2138,2 L (PARA 5 CONTRIBUINTES). | E46: un | F46: 1 | G46: 2142.43 | H46: 2697.533613 | I46: 2697.53 | J46: 2142.43
A47: 10.37 | B47: SINAPI | C47: 98062 | D47: SUMIDOURO CIRCULAR, EM CONCRETO PRÉ-MOLDADO, DIÂMETRO INTERNO = 1,88 M, ALTURA INTERNA = 2,00 M, ÁREA DE INFILTRAÇÃO: 13,1 M² (PARA 5 CONTRIBUINTES) | E47: un | F47: 1 | G47: 3177.47 | H47: 4000.752477 | I47: 4000.75 | J47: 3177.47
A48: 10.38 | D48: SERVIÇOS DIVERSOS | I48: =SUM(I49:I54) -> 35462.38
A49: 10.39 | B49: CPU | C49: CPU003 | D49: =[2]CPU!$A$140 -> CORTE DE CONTAINER PARA ESQUADRIAS | E49: =[2]CPU!$I$140 -> m² | F49: 12.65 | G49: 203.37395 | H49: =(G49*K$1) -> 256.0681404 | I49: =ROUND(F49*H49,2) -> 3239.26 | J49: =CPU!I75 -> 203.37395
A50: 10.40 | B50: CPU | C50: CPU004 | D50: =[2]CPU!$A$182 -> MODIFICAÇÕES NO CONTAINER COM CORTE POR ESMERILHADEIRA | E50: =[2]CPU!$I$182 -> m | F50: 57.68 | G50: 106.828 | H50: =(G50*K$1) -> 134.5071348 | I50: 7758.37 | J50: =CPU!I117 -> 106.828
A51: 10.41 | B51: CPU | C51: CPU005 | D51: =[2]CPU!$A$200 -> MODIFICAÇÕES NO CONTAINER UNIÃO ATRAVÉS DO PROCESSO DE SOLDAGEM, INCLUSO IÇAMENTO DO CONTAINER | E51: =[2]CPU!$I$200 -> m | F51: 40.8 | G51: 357.088556 | H51: 449.6102009 | I51: 18344.1 | J51: =CPU!I139 -> 357.088556
A52: 10.42 | B52: ORSE | C52: 00900/ORSE | D52: ESCADA DE FERRO COM GUARDA-CORPO | E52: m | F52: 0.9 | G52: 601.49 | H52: 754.569205 | I52: 679.11 | J52: 601.49
A53: 10.43 | B53: CPU | C53: CPU011 | D53: GUARDA-CORPO DE AÇO CARBONO, MONTANTES TUBULARES DE 1.1/2" ESPAÇADOS EM 0,75M, ALTURA APROXIMADA DE 0,90M, PREPARADO COM FUNDO E TINTA EPÓXI NA COR AMARELA | E53: m | F53: 1.9 | G53: 510.557203 | H53: 642.8425743 | I53: 1221.4 | J53: =CPU!I234 -> 510.557203
A54: 10.44 | B54: CPU | C54: CPU013 | D54: FORNECIMENTO E INSTALAÇÃO DE SUPORTE PARA CAIXA D'ÁGUA EM METALON | E54: un | F54: 1 | G54: 3351.708324 | H54: 4220.135951 | I54: 4220.14 | J54: =CPU!I288 -> 3351.708324
A55: 10.45 | D55: MATERIAIS | I55: =SUM(I56:I104) -> 166016.52 | J55: 0
A56: 10.46 | B56: Cotação | D56: CONTAINER HIGH CUBE 40 PÉS 12,2X2,3X2,9 (COMPXLARGXALTU) | E56: un | F56: 2 | G56: 20992 | H56: =(G56*K$2) -> 23846.912 | I56: =ROUND(F56*H56,2) -> 47693.82 | J56: =CPU!I268 -> 20992
A57: 10.47 | B57: Sinapi | C57: 89356 | D57: TUBO PVC, SOLDAVEL, DN 25 MM, AGUA FRIA (NBR-5648) | E57: m | F57: 6 | G57: 24.24 | H57: =(G57*K$2) -> 27.53664 | I57: 165.22 | J57: 24.24
A58: 10.48 | B58: Sinapi | C58: 89357 | D58: TUBO PVC, SOLDAVEL, DN 32 MM, AGUA FRIA (NBR-5648) | E58: m | F58: 18 | G58: 32.88 | H58: 37.35168 | I58: 672.33 | J58: 32.88
A59: 10.49 | B59: Sinapi | C59: 89448 | D59: TUBO PVC, SOLDAVEL, DN 40 MM, AGUA FRIA (NBR-5648) | E59: m | F59: 3 | G59: 15.48 | H59: 17.58528 | I59: 52.76 | J59: 15.48
A60: 10.50 | B60: Sinapi | C60: 9838 | D60: TUBO PVC SERIE NORMAL, DN 50 MM, PARA ESGOTO PREDIAL (NBR 5688) | E60: m | F60: 30 | G60: 10.69 | H60: 12.14384 | I60: 364.32 | J60: 10.69
A61: 10.51 | B61: Sinapi | C61: 89362 | D61: JOELHO 90 GRAUS, PVC, SOLDÁVEL, DN 25MM, INSTALADO EM RAMAL OU SUB-RAMAL DE ÁGUA - FORNECIMENTO E INSTALAÇÃO. AF_06/2022 | E61: un | F61: 5 | G61: 9.79 | H61: 11.12144 | I61: 55.61 | J61: 9.79
A62: 10.52 | B62: Sinapi | C62: 89367 | D62: JOELHO 90 GRAUS, PVC, SOLDÁVEL, DN 32MM, INSTALADO EM RAMAL OU SUB-RAMAL DE ÁGUA - FORNECIMENTO E INSTALAÇÃO. AF_06/2022 | E62: un | F62: 4 | G62: 13.31 | H62: 15.12016 | I62: 60.48 | J62: 13.31
A63: 10.53 | B63: Sinapi | C63: 89497 | D63: JOELHO 90 GRAUS, PVC, SOLDÁVEL, DN 40MM, INSTALADO EM PRUMADA DE ÁGUA - FORNECIMENTO E INSTALAÇÃO. AF_06/2022 | E63: un | F63: 3 | G63: 12.95 | H63: 14.7112 | I63: 44.13 | J63: 12.95
A64: 10.54 | B64: Sinapi | C64: 3874 | D64: LUVA SOLDAVEL COM BUCHA DE LATÃO DN25X1/2" | E64: un | F64: 5 | G64: 5.68 | H64: 6.45248 | I64: 32.26 | J64: 5.68
A65: 10.55 | B65: Sinapi | C65: 12909 | D65: CAP PVC, SOLDAVEL, DN 50 MM, SERIE NORMAL, PARA ESGOTO PREDIAL | E65: un | F65: 3 | G65: 4.45 | H65: 5.0552 | I65: 15.17 | J65: 4.45
A66: 10.56 | B66: Sinapi | C66: 7136 | D66: TE DE REDUCAO, PVC, SOLDAVEL, 90 GRAUS, 32 MM X 25 MM, PARA AGUA FRIA PREDIAL | E66: un | F66: 5 | G66: 6.34 | H66: 7.20224 | I66: 36.01 | J66: 6.34
A67: 10.57 | B67: Sinapi | C67: 97 | D67: ADAPTADOR PVC SOLDAVEL, COM FLANGE E ANEL DE VEDACAO, 32 MM X 1", PARA CAIXA D'ÁGUA | E67: un | F67: 1 | G67: 17.58 | H67: 19.97088 | I67: 19.97 | J67: 17.58
A68: 10.58 | B68: Sinapi | C68: 98 | D68: ADAPTADOR PVC SOLDAVEL, COM FLANGE E ANEL DE VEDACAO, 40 MM X 1 1/4", PARA CAIXA D'ÁGUA | E68: un | F68: 1 | G68: 26.32 | H68: 29.89952 | I68: 29.9 | J68: 26.32
A69: 10.59 | B69: Sinapi | C69: 11871 | D69: CAIXA D'AGUA EM POLIETILENO 500 LITROS, COM TAMPA | E69: un | F69: 1 | G69: 495.45 | H69: 562.8312 | I69: 562.83 | J69: 495.45
A70: 10.60 | B70: Sinapi | C70: 94795 | D70: TORNEIRA DE BOIA PARA CAIXA D'ÁGUA, ROSCÁVEL, 1/2" - FORNECIMENTO E INSTALAÇÃO. AF_08/2021 | E70: un | F70: 1 | G70: 32.9 | H70: 37.3744 | I70: 37.37 | J70: 32.9
A71: 10.61 | B71: Sinapi | C71: 799 | D71: BUCHA DE REDUCAO PVC, ROSCAVEL, 1" X 1/2" | E71: un | F71: 1 | G71: 3.33 | H71: 3.78288 | I71: 3.78 | J71: 3.33
A72: 10.62 | B72: Sinapi | C72: 11746 | D72: VALVULA DE ESFERA BRUTA EM BRONZE, BITOLA 1” | E72: un | F72: 1 | G72: 80.34 | H72: 91.26624 | I72: 91.27 | J72: 80.34
A73: 10.63 | B73: Sinapi | C73: 4177 | D73: NIPLE DE FERRO GALVANIZADO, COM ROSCA BSP, DE 1/2" | E73: un | F73: 1 | G73: 5.3 | H73: 6.0208 | I73: =ROUND(F73*H73,2) -> 6.02 | J73: 5.3
A74: 10.64 | B74: Sinapi | C74: 3855 | D74: LUVA SOLDAVEL COM BUCHA DE LATÃO DN25X1/2" | E74: un | F74: 1 | G74: 4.9 | H74: 5.5664 | I74: =ROUND(F74*H74,2) -> 5.57 | J74: 4.9
A75: 10.65 | B75: Sinapi | C75: 11674 | D75: REGISTRO DE ESFERA, PVC, COM VOLANTE, VS, SOLDAVEL, DN 25 MM, COM CORPO DIVIDIDO | E75: un | F75: 1 | G75: 15.41 | H75: 17.50576 | I75: =ROUND(F75*H75,2) -> 17.51 | J75: 15.41
A76: 10.66 | B76: Sinapi | C76: 35277 | D76: CAIXA DE GORDURA EM PVC, DIAMETRO MINIMO 300 MM, DIAMETRO DE SAIDA 100 MM CAPACIDADE APROXIMADA 18 LITROS, COM TAMPA E CESTO | E76: un | F76: 2 | G76: 401.85 | H76: 456.5016 | I76: =ROUND(F76*H76,2) -> 913 | J76: 401.85
A77: 10.67 | B77: Sinapi | C77: 89482 | D77: CAIXA SIFONADA, PVC, DN 100 X 100 X 50 MM, FORNECIDA E INSTALADA EM RAMAIS DE ENCAMINHAMENTO DE ÁGUA PLUVIAL. AF_06/2022 | E77: un | F77: 5 | G77: 42.11 | H77: 47.83696 | I77: 239.18 | J77: 42.11
A78: 10.68 | B78: Sinapi | C78: 89502 | D78: JOELHO 45 GRAUS, PVC, SOLDÁVEL, DN 50MM, INSTALADO EM PRUMADA DE ÁGUA - FORNECIMENTO E INSTALAÇÃO. AF_06/2022 | E78: un | F78: 4 | G78: 16.54 | H78: 18.78944 | I78: 75.16 | J78: 16.54
A79: 10.69 | B79: Sinapi | C79: 89501 | D79: JOELHO 90 GRAUS, PVC, SOLDÁVEL, DN 50MM, INSTALADO EM PRUMADA DE ÁGUA - FORNECIMENTO E INSTALAÇÃO. AF_06/2022 | E79: un | F79: 10 | G79: 14.18 | H79: 16.10848 | I79: 161.08 | J79: 14.18
A80: 10.70 | B80: Sinapi | C80: 103995 | D80: LUVA, PVC, SOLDÁVEL, DN 50MM, INSTALADO EM RAMAL DE DISTRIBUIÇÃO DE ÁGUA - FORNECIMENTO E INSTALAÇÃO. AF_06/2022 | E80: un | F80: 21 | G80: 15 | H80: 17.04 | I80: 357.84 | J80: 15
A81: 10.71 | B81: Sinapi | C81: 89567 | D81: JUNÇÃO SIMPLES, PVC, SERIE R, ÁGUA PLUVIAL, DN 100 X 100 MM, JUNTA ELÁSTICA, FORNECIDO E INSTALADO EM RAMAL DE ENCAMINHAMENTO. AF_06/2022 | E81: un | F81: 6 | G81: 84.32 | H81: 95.78752 | I81: 574.73 | J81: 84.32
A82: 10.72 | B82: Sinapi | C82: 12909 | D82: CAP PVC, SOLDAVEL, DN 50 MM, SERIE NORMAL, PARA ESGOTO | E82: un | F82: 1 | G82: 4.45 | H82: 5.0552 | I82: 5.06 | J82: 4.45
A83: 10.73 | B83: Sinapi | C83: 34628 | D83: DISJUNTOR TIPO DIN/IEC, BIPOLAR 63 A | E83: un | F83: 1 | G83: 71.16 | H83: 80.83776 | I83: 80.84 | J83: 71.16
A84: 10.74 | B84: Sinapi | C84: 34616 | D84: DISJUNTOR TIPO DIN/IEC, BIPOLAR DE 6 ATE 32A | E84: un | F84: 6 | G84: 50.45 | H84: 57.3112 | I84: 343.87 | J84: 50.45
A85: 10.75 | B85: ORSE | C85: 07943/ORSE | D85: DISJUNTOR BIPOLAR DR 25A - DISPOSITIVO DIFERENCIAL RESIDUAL, TIPO AC, 30MA | E85: un | F85: 3 | G85: 278.5 | H85: 309.135 | I85: 927.41 | J85: 278.5
A86: 10.76 | B86: Sinapi | C86: 39805 | D86: QUADRO DE DISTRIBUICAO, EM PVC, DE EMBUTIR, COM BARRAMENTO TERRA / NEUTRO, PARA 12 DISJUNTORES NEMA OU 16 DISJUNTORES DIN | E86: un | F86: 1 | G86: =J86 -> 129.9 | H86: 147.5664 | I86: 147.57 | J86: 129.9
A87: 10.77 | B87: Sinapi | C87: 1014 | D87: CABO DE COBRE, FLEXIVEL, CLASSE 4 OU 5, ISOLACAO EM PVC/A, ANTICHAMA BWF-B, 1 CONDUTOR, 450/750 V, SECAO NOMINAL 2,5 MM2 | E87: m | F87: 397.5 | G87: 2.2 | H87: 2.4992 | I87: 993.43 | J87: 2.2
A88: 10.78 | B88: Sinapi | C88: 39471 | D88: DISPOSITIVO DPS CLASSE II, 1 POLO, TENSAO MAXIMA DE 275 V, CORRENTE MAXIMA DE *45* KA (TIPO AC) | E88: un | F88: 2 | G88: 101.33 | H88: 115.11088 | I88: 230.22 | J88: 101.33
A89: 10.79 | B89: Sinapi | C89: 981 | D89: CABO DE COBRE, FLEXIVEL, CLASSE 4 OU 5, ISOLACAO EM PVC/A, ANTICHAMA BWF-B, 1 CONDUTOR, 450/750 V, SECAO NOMINAL 4 MM2 | E89: m | F89: 77.58 | G89: 3.65 | H89: 4.1464 | I89: 321.68 | J89: 3.65
A90: 10.80 | B90: Sinapi | C90: 993 | D90: CABO DE COBRE, FLEXIVEL, CLASSE 4 OU 5, ISOLACAO EM PVC/A, ANTICHAMA BWF-B, COBERTURA PVC-ST1, ANTICHAMA BWF-B, 1 CONDUTOR, 0,6/1 KV, SECAO NOMINAL 1,5 MM2 | E90: m | F90: 396.4 | G90: 1.87 | H90: 2.12432 | I90: 842.08 | J90: 1.87
A91: 10.81 | B91: Sinapi | C91: 38076 | D91: TOMADAS (2 MODULOS) 2P+T 10A, 250V, CONJUNTO MONTADO PARA EMBUTIR 4" X 2" (PLACA + SUPORTE + MODULOS) | E91: un | F91: 11 | G91: 19.22 | H91: 21.83392 | I91: 240.17 | J91: 19.22
A92: 10.82 | B92: Sinapi | C92: 1871 | D92: CAIXA OCTOGONAL DE FUNDO MOVEL, EM PVC, DE 3" X 3", PARA ELETRODUTO FLEXIVEL CORRUGADO | E92: un | F92: 8 | G92: 3.44 | H92: 3.90784 | I92: 31.26 | J92: 3.44
A93: 10.83 | B93: Sinapi | C93: 2689 | D93: ELETRODUTO PVC FLEXIVEL CORRUGADO, COR AMARELA, DE 20 MM | E93: m | F93: 15.53 | G93: 2.08 | H93: 2.36288 | I93: 36.7 | J93: 2.08
A94: 10.84 | B94: Sinapi | C94: 2688 | D94: ELETRODUTO PVC FLEXIVEL CORRUGADO, COR AMARELA, DE 25 MM | E94: m | F94: 71.74 | G94: 2.26 | H94: 2.56736 | I94: 184.18 | J94: 2.26
A95: 10.85 | B95: Sinapi | C95: 20111 | D95: FITA ISOLANTE ADESIVA ANTICHAMA, USO ATE 750 V, EM ROLO DE 19 MM X 20 M | E95: un | F95: 6 | G95: 9.89 | H95: 11.23504 | I95: 67.41 | J95: 9.89
A96: 10.86 | B96: Sinapi | C96: 1873 | D96: CAIXA DE PASSAGEM, EM PVC, DE 4" X 4", PARA ELETRODUTO FLEXIVEL CORRUGADO | E96: un | F96: 1 | G96: 3.82 | H96: 4.33952 | I96: 4.34 | J96: 3.82
A97: 10.87 | B97: Sinapi | C97: 38063 | D97: INTERRUPTOR PARALELO 10A, 250V, CONJUNTO MONTADO PARA EMBUTIR 4" X 2" (PLACA + SUPORTE + MODULO) | E97: un | F97: 4 | G97: 10.34 | H97: 11.74624 | I97: 46.98 | J97: 10.34
A98: 10.88 | B98: Sinapi | C98: 38078 | D98: INTERRUPTOR PARALELO + TOMADA 2P+T 10A, 250V, CONJUNTO MONTADO PARA EMBUTIR 4" X 2" (PLACA + SUPORTE + MODULOS) | E98: un | F98: 1 | G98: 10.34 | H98: 11.74624 | I98: 11.75 | J98: 10.34
A99: 10.89 | B99: Sinapi | C99: 38775 | D99: LUMINARIA TIPO TARTARUGA PARA AREA EXTERNA EM ALUMINIO, COM GRADE, PARA 1 LAMPADA, BASE E27, POTENCIA MAXIMA 40/60 W (NAO INCLUI LAMPADA) | E99: un | F99: 8 | G99: 80.79 | H99: 91.77744 | I99: 734.22 | J99: 80.79
A100: 10.90 | B100: Sinapi | C100: 10569 | D100: CAIXA DE PASSAGEM / DERIVACAO / LUZ, OCTOGONAL 4 X4, EM ACO ESMALTADA, COM FUNDO MOVEL SIMPLES (FMS) | E100: un | F100: 6 | G100: 3.29 | H100: 3.73744 | I100: 22.42 | J100: 3.29
A101: 10.91 | B101: Sinapi | C101: 100954 | D101: TRANSPORTE COM CAMINHÃO CARROCERIA COM GUINDAUTO (MUNCK), MOMENTO MÁXIMO DE CARGA 11,7 TM, EM VIA INTERNA (DENTRO DO CANTEIRO - UNIDADE: TXKM). AF_07/2020 | E101: TXKM | F101: 600 | G101: 9.18 | H101: 10.42848 | I101: =ROUND(F101*H101,2) -> 6257.09 | J101: 9.18
A102: 10.92 | B102: Sinapi | C102: 100788 | D102: KIT CAVALETE PARA GÁS - SEM MEDIDOR OU REGULADOR - ENTRADA INDIVIDUAL PRINCIPAL, EM AÇO GALVANIZADO DN 15 E 25 MM (1/2" E 1") - FORNECIMENTO E INSTALAÇÃO | E102: und | F102: 1 | G102: 758.1 | H102: 861.2016 | I102: =ROUND(F102*H102,2) -> 861.2 | J102: 758.1
A103: 10.93 | B103: CPU | C103: CPU008 | D103: CHAPA XADREZ EM ALUMINIO PARA PISO e:3mm, INCLUSO REBITE PARA FIXAÇÃO - APENAS MATERIAL | E103: m² | F103: 56.544 | G103: 540.7064 | H103: 614.2424704 | I103: =ROUND(F103*H103,2) -> 34731.73 | J103: =CPU!I182 -> 540.7064
A104: 10.94 | B104: CPU | C104: CPU006 | D104: REVESTIMENTO DE PAREDES EM CHAPAS DE AÇO INOXIDÁVEL AISI 304 - APENAS MATERIAL | E104: m² | F104: 160.29 | G104: 365.796 | H104: 415.544256 | I104: =ROUND(F104*H104,2) -> 66607.59 | J104: =CPU!I151 -> 365.796

Sheet CPU
A1: MINISTÉRIO DO DESENVOLVIMENTO REGIONAL - MDR
A2: COMPANHIA DE DESENVOLVIMENTO DOS VALES DO SÃO FRANCISCO E DO PARNAÍBA
A3: SEDE
A4: PLANILHA ORÇAMENTÁRIA DE ESTIMATIVA GERAL PARA O ESTADO DO CEARÁ | H4: Base SINAPI-CE 03/2025 ORSE 02/2025
H5: Data: Maio/2025
A6: COMPOSIÇÕES DE PREÇO UNITÁRIO
A8: COMPOSIÇÃO DE PREÇO UNITÁRIO | I8: CPU003
A9: DESCRIÇÃO DO SERVIÇO | H9: DATA BASE: | I9: 2024-07-01
A10: ADMINISTRAÇÃO LOCAL | H10: UNIDADE: | I10: mês
A11: MATERIAL
A12: BASE | B12: CÓDIGO | C12: DISCRIMINAÇÃO | D12: UNI | E12: QUANT. | F12: PROD | G12: P.UN.PROD | H12: P.UN.IMPR | I12: P.TOTAL
A13: MERCADO | C13: ALUGUEL | D13: mês | E13: 1 | H13: 800 | I13: =E13*H13 -> 800
A14: MERCADO | C14: TELEFONE E INTERNET | D14: mês | E14: 1 | H14: 99.9 | I14: 99.9
A15: MERCADO | C15: ENERGIA ELÉTRICA | D15: kwh | E15: 200 | H15: 0.53 | I15: 106
A16: MERCADO | C16: ÁGUA E ESGOTO | D16: mês | E16: 1 | H16: 100 | I16: 100
A17: MERCADO | C17: MATERIAL PARA ESCRITÓRIO | D17: mês | E17: 1 | H17: 150 | I17: 150
A18: MERCADO | C18: MATERIAL DE LIMPEZA | D18: mês | E18: 1 | H18: 50 | I18: 50
A19: SUB-TOTAL | I19: =SUM(I13:I18) -> 1305.9
A20: MÃO DE OBRA
A21: BASE | B21: CÓDIGO | C21: DISCRIMINAÇÃO | D21: UNI | E21: QUANT. | H21: P.UNIT. | I21: P.TOTAL
A22: MERCADO | C22: ENGENHEIRO DE OBRA | D22: mês | E22: 1 | H22: 8483 | I22: =E22*H22 -> 8483
A23: MERCADO | C23: MESTRE DE OBRAS | D23: mês | E23: 1 | H23: 4515.12 | I23: =E23*H23 -> 4515.12
A24: MERCADO | C24: AUXILIAR DE ESCRITORIO COM ENCARGOS COMPLEMENTARES | D24: mês | E24: 1 | H24: 1100 | I24: =E24*H24 -> 1100
A25: MERCADO | C25: TÉCNICO EM SEGURANÇA DO TRABALHO | D25: h | E25: 44 | H25: 27.26 | I25: =E25*H25 -> 1199.44
A26: MERCADO | C26: VIGIA | D26: mês | E26: 1 | H26: 1100 | I26: =E26*H26 -> 1100
A27: SUB-TOTAL | I27: =SUM(I22:I26) -> 16397.56
A28: PRODUÇÃO DA EQUIPE | D28: 1 | E28: CUSTO | I28: =I27+I19 -> 17703.46
A29: TOTAL - R$ | I29: =I28/D28 -> 17703.46
A30: BDI % | I30: 1
A31: TOTAL DO SERVIÇO - R$ | I31: =I29*I30 -> 17703.46
A33: COMPOSIÇÃO DE PREÇO UNITÁRIO | I33: CPU001
A34: DESCRIÇÃO DO SERVIÇO | H34: DATA BASE: | I34: 2025-03-01
A35: EXECUÇÃO DE INSTALAÇÕES HIDROSSANITÁRIAS, EXCLUSIVE EQUIPAMENTOS | H35: UNIDADE: | I35: cj
A36: MÃO DE OBRA
A37: BASE | B37: CÓDIGO | C37: DISCRIMINAÇÃO | D37: UNI | E37: QUANT. | H37: P.UNIT. | I37: P.TOTAL
A38: SINAPI | B38: 88316 | C38: SERVENTE DE OBRAS | D38: h | E38: 80 | H38: 23.37 | I38: =E38*H38 -> 1869.6
A39: SINAPI | B39: 88309 | C39: PEDREIRO | D39: h | E39: 40 | H39: 29.21 | I39: =E39*H39 -> 1168.4
A40: SUB-TOTAL | I40: =SUM(I38:I39) -> 3038
A41: PRODUÇÃO DA EQUIPE | D41: 1 | E41: CUSTO | I41: =SUM(I40) -> 3038
A42: TOTAL - R$ | I42: =I41/D41 -> 3038
A43: BDI % | I43: 1
A44: TOTAL DO SERVIÇO - R$ | I44: =I42*I43 -> 3038
A46: COMPOSIÇÃO DE PREÇO UNITÁRIO | I46: CPU002
A47: DESCRIÇÃO DO SERVIÇO | H47: DATA BASE: | I47: 2025-03-01
A48: EXECUÇÃO DE INSTALAÇÕES ELÉTRICAS, EXCLUSIVE EQUIPAMENTOS | H48: UNIDADE: | I48: cj
A49: MÃO DE OBRA
A50: BASE | B50: CÓDIGO | C50: DISCRIMINAÇÃO | D50: UNI | E50: QUANT. | H50: P.UNIT. | I50: P.TOTAL
A51: SINAPI | B51: 88247 | C51: AUXILIAR DE ELETRICISTA | D51: h | E51: 80 | H51: 24.99 | I51: =E51*H51 -> 1999.2
A52: SINAPI | B52: 88264 | C52: ELETRICISTA | D52: h | E52: 40 | H52: 29.57 | I52: =E52*H52 -> 1182.8
A53: SUB-TOTAL | I53: =SUM(I51:I52) -> 3182
A54: PRODUÇÃO DA EQUIPE | D54: 1 | E54: CUSTO | I54: =SUM(I53) -> 3182
A55: TOTAL - R$ | I55: =I54/D54 -> 3182
A56: BDI % | I56: 1
A57: TOTAL DO SERVIÇO - R$ | I57: =I55*I56 -> 3182
A59: COMPOSIÇÃO DE PREÇO UNITÁRIO | I59: CPU003
A60: DESCRIÇÃO DO SERVIÇO | H60: DATA BASE: | I60: 2025-03-01
A61: CORTE DE CONTAINER PARA ESQUADRIAS | H61: UNIDADE: | I61: m²
A62: MATERIAL
A63: BASE | B63: CÓDIGO | C63: DISCRIMINAÇÃO | D63: UNI | E63: QUANT. | H63: P.UNIT. | I63: P.TOTAL
A64: SINAPI | B64: 11359 | C64: ESMERILHADEIRA ANGULAR ELETRICA, DIAMETRO DO DISCO 7 '' (180 MM), ROTACAO 8500RPM, POTENCIA 2400 W | D64: un | E64: 0.071 | H64: 1142.45 | I64: =E64*H64 -> 81.11395
A65: SINAPI | B65: 44531 | C65: DISCO DE CORTE DIAMANTADO SEGMENTADO DIAMETRO DE 180 MM PARA ESMERILHADEIRA 7 " | D65: un | E65: 1 | H65: 92.78 | I65: =E65*H65 -> 92.78
A66: SUB-TOTAL | I66: =SUM(I64:I65) -> 173.89395
A67: MÃO DE OBRA
A68: BASE | B68: CÓDIGO | C68: DISCRIMINAÇÃO | D68: UNI | E68: QUANT. | H68: P.UNIT. | I68: P.TOTAL
A69: SINAPI | B69: 88317 | C69: SOLDADOR COM ENCARGOS COMPLEMENTARES | D69: h | E69: 0.5 | H69: 29.95 | I69: =E69*H69 -> 14.975
A70: SINAPI | B70: 88315 | C70: SERRALHEIRO COM ENCARGOS COMPLEMENTARES | D70: h | E70: 0.5 | H70: 29.01 | I70: =E70*H70 -> 14.505
A71: SUB-TOTAL | I71: =SUM(I69:I70) -> 29.48
A72: PRODUÇÃO DA EQUIPE | D72: 1 | E72: CUSTO | I72: =I71+I66 -> 203.37395
A73: TOTAL - R$ | I73: =I72/D72 -> 203.37395
A74: BDI % | I74: 1
A75: TOTAL DO SERVIÇO - R$ | I75: =I73*I74 -> 203.37395
A77: COMPOSIÇÃO DE PREÇO UNITÁRIO | I77: CPU010
A78: DESCRIÇÃO DO SERVIÇO | H78: DATA BASE: | I78: 2024-07-01
A79: FORNECIMENTO E MONTAGEM DE ESTRUTURA PARA COBERTURA COM ÁREA TOTAL DE 86,27 M² INCLUINDO CALHA E TELHA SANDUÍCHE | H79: UNIDADE: | I79: cj
A80: MÃO DE OBRA
A81: BASE | B81: CÓDIGO | C81: DISCRIMINAÇÃO | D81: UNI | E81: QUANT. | H81: P.UNIT. | I81: P.TOTAL
A82: COTAÇÃO | C82: FABRICAÇÃO E MONTAGEM DE ESTRUTURA METÁLICA PARA COBERTURA DE UNIDADE COM ÁREA TOTAL DE 86,26 M² | D82: cj | E82: 1 | H82: 24877.99 | I82: =E82*H82 -> 24877.99
A83: SUB-TOTAL | I83: =SUM(I82:I82) -> 24877.99
A84: PRODUÇÃO DA EQUIPE | D84: 1 | E84: CUSTO | I84: =SUM(I83) -> 24877.99
A85: TOTAL - R$ | I85: =I84/D84 -> 24877.99
A86: BDI % | I86: 1
A87: TOTAL DO SERVIÇO - R$ | I87: =I85*I86 -> 24877.99
A89: COMPOSIÇÃO DE PREÇO UNITÁRIO | I89: CPU011
A90: DESCRIÇÃO DO SERVIÇO | H90: DATA BASE: | I90: 2024-07-01
A91: FORNECIMENTO E MONTAGEM DE ESTRUTURA PARA COBERTURA COM ÁREA TOTAL DE 137,9 M² INCLUINDO CALHA E TELHA SANDUÍCHE | H91: UNIDADE: | I91: cj
A92: MÃO DE OBRA
A93: BASE | B93: CÓDIGO | C93: DISCRIMINAÇÃO | D93: UNI | E93: QUANT. | H93: P.UNIT. | I93: P.TOTAL
A94: COTAÇÃO | C94: FABRICAÇÃO E MONTAGEM DE ESTRUTURA METÁLICA PARA COBERTURA DE UNIDADE COM ÁREA TOTAL DE 137,9 M² | D94: cj | E94: 1 | H94: 39043.9 | I94: =E94*H94 -> 39043.9
A95: SUB-TOTAL | I95: =SUM(I94:I94) -> 39043.9
A96: PRODUÇÃO DA EQUIPE | D96: 1 | E96: CUSTO | I96: =SUM(I95) -> 39043.9
A97: TOTAL - R$ | I97: =I96/D96 -> 39043.9
A98: BDI % | I98: 1
A99: TOTAL DO SERVIÇO - R$ | I99: =I97*I98 -> 39043.9
A101: COMPOSIÇÃO DE PREÇO UNITÁRIO | I101: CPU004
A102: DESCRIÇÃO DO SERVIÇO | H102: DATA BASE: | I102: 2025-03-01
A103: MODIFICAÇÕES NO CONTAINER COM CORTE POR ESMERILHADEIRA | H103: UNIDADE: | I103: m
A104: MATERIAL
A105: BASE | B105: CÓDIGO | C105: DISCRIMINAÇÃO | D105: UNI | E105: QUANT. | H105: P.UNIT. | I105: P.TOTAL
A106: SINAPI | B106: 11359 | C106: ESMERILHADEIRA ANGULAR ELETRICA, DIAMETRO DO DISCO 7 '' (180 MM), ROTACAO 8500RPM, POTENCIA 2400 W | D106: un | E106: 0.04 | H106: 1142.45 | I106: =E106*H106 -> 45.698
A107: SINAPI | B107: 44531 | C107: DISCO DE CORTE DIAMANTADO SEGMENTADO DIAMETRO DE 180 MM PARA ESMERILHADEIRA 7 " | D107: un | E107: 0.5 | H107: 92.78 | I107: =E107*H107 -> 46.39
A108: SUB-TOTAL | I108: =SUM(I106:I107) -> 92.088
A109: MÃO DE OBRA
A110: BASE | B110: CÓDIGO | C110: DISCRIMINAÇÃO | D110: UNI | E110: QUANT. | H110: P.UNIT. | I110: P.TOTAL
A111: SINAPI | B111: 88317 | C111: SOLDADOR COM ENCARGOS COMPLEMENTARES | D111: h | E111: 0.25 | H111: 29.95 | I111: =E111*H111 -> 7.4875
A112: SINAPI | B112: 88315 | C112: SERRALHEIRO COM ENCARGOS COMPLEMENTARES | D112: h | E112: 0.25 | H112: 29.01 | I112: =E112*H112 -> 7.2525
A113: SUB-TOTAL | I113: =SUM(I111:I112) -> 14.74
A114: PRODUÇÃO DA EQUIPE | D114: 1 | E114: CUSTO | I114: =I113+I108 -> 106.828
A115: TOTAL - R$ | I115: =I114/D114 -> 106.828
A116: BDI % | I116: 1
A117: TOTAL DO SERVIÇO - R$ | I117: =I115*I116 -> 106.828
A119: COMPOSIÇÃO DE PREÇO UNITÁRIO | I119: CPU005
A120: DESCRIÇÃO DO SERVIÇO | H120: DATA BASE: | I120: 2025-03-01
A121: MODIFICAÇÕES NO CONTAINER UNIÃO ATRAVÉS DO PROCESSO DE SOLDAGEM, INCLUSO IÇAMENTO DO CONTAINER | H121: UNIDADE: | I121: m
A122: EQUIPAMENTO
A123: BASE | B123: CÓDIGO | C123: DISCRIMINAÇÃO | D123: UNI | E123: QUANT. | H123: P.UNIT. | I123: P.TOTAL
A124: SINAPI | B124: 92716 | C124: APARELHO PARA CORTE E SOLDA OXI-ACETILENO SOBRE RODAS, INCLUSIVE CILINDROS E MAÇARICOS | D124: chp | E124: 0.1846 | H124: 93.64 | I124: =E124*H124 -> 17.285944
A125: SINAPI | B125: 92715 | C125: APARELHO PARA CORTE E SOLDA OXI-ACETILENO SOBRE RODAS, INCLUSIVE CILINDROS E MAÇARICOS - MATERIAIS NA OPERAÇÃO. | D125: h | E125: 1.56 | H125: 93.25 | I125: =E125*H125 -> 145.47
A126: SINAPI | B126: 5928 | C126: GUINDAUTO HIDRÁULICO, CAPACIDADE MÁXIMA DE CARGA 6200 KG, MOMENTO MÁXIMO DE CARGA 11,7 TM, ALCANCE MÁXIMO HORIZONTAL 9,70 M, INCLUSIVE CAMINHÃO TOCO PBT 16.000 KG, POTÊNCIA DE 189 CV | D126: chp | E126: 0.2388 | H126: 297.49 | I126: =E126*H126 -> 71.040612
A127: SUB-TOTAL | I127: =SUM(I124:I126) -> 233.796556
A128: SERVIÇOS - COMPOSIÇÕES AUXILIARES
A129: BASE | B129: CÓDIGO | C129: DISCRIMINAÇÃO | D129: UNI | E129: QUANT. | H129: P.UNIT. | I129: P.TOTAL
A130: SINAPI | B130: 98746 | C130: SOLDA DE TOPO EM CHAPA/PERFIL/TUBO DE AÇO CHANFRADO, ESPESSURA=1/4''. | D130: m | E130: 1 | H130: 76.57 | I130: =E130*H130 -> 76.57
A131: SUB-TOTAL | I131: =SUM(I130:I130) -> 76.57
A132: MÃO DE OBRA
A133: BASE | B133: CÓDIGO | C133: DISCRIMINAÇÃO | D133: UNI | E133: QUANT. | H133: P.UNIT. | I133: P.TOTAL
A134: SINAPI | B134: 88317 | C134: SOLDADOR COM ENCARGOS COMPLEMENTARES | D134: h | E134: 1.56 | H134: 29.95 | I134: =E134*H134 -> 46.722
A135: SUB-TOTAL | I135: =SUM(I134:I134) -> 46.722
A136: PRODUÇÃO DA EQUIPE | D136: 1 | E136: CUSTO | I136: =I135+I127+I131 -> 357.088556
A137: TOTAL - R$ | I137: =I136/D136 -> 357.088556
A138: BDI % | I138: 1
A139: TOTAL DO SERVIÇO - R$ | I139: =I137*I138 -> 357.088556
A141: COMPOSIÇÃO DE PREÇO UNITÁRIO | I141: CPU006
A142: DESCRIÇÃO DO SERVIÇO | H142: DATA BASE: | I142: 2025-03-01
A143: REVESTIMENTO DE PAREDES EM CHAPAS DE AÇO INOXIDÁVEL AISI 304 - CONSIDERANDO CHAPA DE 1,2mm | H143: UNIDADE: | I143: M²
A144: MATERIAL
A145: BASE | B145: CÓDIGO | C145: DISCRIMINAÇÃO | D145: UNI | E145: QUANT. | H145: P.UNIT. | I145: P.TOTAL
A146: COTAÇÃO | C146: CHAPAS DE AÇO INOXIDÁVEL AISI 304 | D146: KG | E146: 9.6 | H146: 34 | I146: =E146*H146 -> 326.4
A147: SINAPI | B147: 131 | C147: ADESIVO ESTRUTURAL A BASE DE RESINA EPOXI, BICOMPONENTE, PASTOSO (TIXOTROPICO) | D147: KG | E147: 0.6 | H147: 65.66 | I147: =E147*H147 -> 39.396
A148: SUB-TOTAL | I148: =SUM(I146:I147) -> 365.796
A149: TOTAL - R$ | I149: =I148 -> 365.796
A150: BDI % | I150: 1
A151: TOTAL DO SERVIÇO - R$ | I151: =I149*I150 -> 365.796
A153: COMPOSIÇÃO DE PREÇO UNITÁRIO | I153: CPU007
A154: DESCRIÇÃO DO SERVIÇO | H154: DATA BASE: | I154: 2025-03-01
A155: REVESTIMENTO CERÂMICO PARA PISO COM PLACAS TIPO ESMALTADA DE DIMENSÕES 45x45cm COM ARGAMASSA AC III | H155: UNIDADE: | I155: m²
A156: MATERIAL
A157: BASE | B157: CÓDIGO | C157: DISCRIMINAÇÃO | D157: UNI | E157: QUANT. | H157: P.UNIT. | I157: P.TOTAL
A158: Sinapi | B158: 37596 | C158: ARGAMASSA COLANTE TIPO AC III E | D158: KG | E158: 9.1325 | H158: 3.77 | I158: =E158*H158 -> 34.429525
A159: Sinapi | B159: 1287 | C159: PISO EM CERAMICA ESMALTADA EXTRA, COR LISA, PEI MAIOR OU IGUAL A 4, FORMATO MENOR OU IGUAL A 5 CM2 | D159: m² | E159: 1.1136 | H159: 38.74 | I159: =E159*H159 -> 43.140864
A160: Sinapi | B160: 34357 | C160: REJUNTE CIMENTÍCIO, QUALQUER COR | D160: KG | E160: 0.188 | H160: 6.28 | I160: =E160*H160 -> 1.18064
A161: SUB-TOTAL | I161: =SUM(I158:I160) -> 78.751029
A162: MÃO DE OBRA
A163: BASE | B163: CÓDIGO | C163: DISCRIMINAÇÃO | D163: UNI | E163: QUANT. | H163: P.UNIT. | I163: P.TOTAL
A164: SINAPI | B164: 88317 | C164: SOLDADOR COM ENCARGOS COMPLEMENTARES | D164: h | E164: 0.8064 | H164: 29.95 | I164: =E164*H164 -> 24.15168
A165: SINAPI | B165: 88316 | C165: SERVENTE COM ENCARGOS COMPLEMENTARES | D165: h | E165: 0.2068 | H165: 23.37 | I165: =E165*H165 -> 4.832916
A166: SUB-TOTAL | I166: =SUM(I164:I165) -> 28.984596
A167: PRODUÇÃO DA EQUIPE | D167: 1 | E167: CUSTO | I167: =I166+I161 -> 107.735625
A168: TOTAL - R$ | I168: =I167/D167 -> 107.735625
A169: BDI % | I169: 1
A170: TOTAL DO SERVIÇO - R$ | I170: =I168*I169 -> 107.735625
A173: COMPOSIÇÃO DE PREÇO UNITÁRIO | I173: CPU008
A174: DESCRIÇÃO DO SERVIÇO | H174: DATA BASE: | I174: 2025-03-01
A175: CHAPA XADREZ EM ALUMINIO PARA PISO e:3mm, INCLUSO REBITE PARA FIXAÇÃO - MATERIAL | H175: UNIDADE: | I175: m
A176: MATERIAL
A177: BASE | B177: CÓDIGO | C177: DISCRIMINAÇÃO | D177: UNI | E177: QUANT. | H177: P.UNIT. | I177: P.TOTAL
A178: SINAPI | B178: 1337 | C178: CHAPA DE ACO XADREZ PARA PISOS, E = 1/4" (6,30 MM) 54,53 KG/M2 | D178: kg | E178: 38 | H178: 10.57 | I178: =E178*H178 -> 401.66
A179: SINAPI | B179: 10997 | C179: ELETRODO REVESTIDO AWS - E7018, DIAMETRO IGUAL A 4,00 MM | D179: Kg | E179: 2.88 | H179: 48.28 | I179: =E179*H179 -> 139.0464
A180: SUB-TOTAL | I180: =SUM(I178:I179) -> 540.7064
A181: BDI % | I181: 1
A182: TOTAL DO SERVIÇO - R$ | I182: =I180 -> 540.7064
A185: COMPOSIÇÃO DE PREÇO UNITÁRIO | I185: CPU009
A186: DESCRIÇÃO DO SERVIÇO | H186: DATA BASE: | I186: 2025-03-01
A187: CHAPA XADREZ EM ALUMINIO PARA PISO e:3mm, INCLUSO REBITE PARA FIXAÇÃO - MÃO DE OBRA | H187: UNIDADE: | I187: m
A188: MÃO DE OBRA
A189: BASE | B189: CÓDIGO | C189: DISCRIMINAÇÃO | D189: UNI | E189: QUANT. | H189: P.UNIT. | I189: P.TOTAL
A190: SINAPI | B190: 88315 | C190: SERRALHEIRO COM ENCARGOS COMPLEMENTARES | D190: h | E190: 8.99 | H190: 29.01 | I190: =E190*H190 -> 260.7999
A191: SINAPI | B191: 88316 | C191: SERVENTE COM ENCARGOS COMPLEMENTARES | D191: H | E191: 6.42 | H191: 23.37 | I191: =E191*H191 -> 150.0354
A192: SUB-TOTAL | I192: =SUM(I190:I191) -> 410.8353
A193: PRODUÇÃO DA EQUIPE | D193: 1 | E193: CUSTO | I193: =I192 -> 410.8353
A194: TOTAL - R$ | I194: =I193/D193 -> 410.8353
A195: BDI % | I195: 1
A196: TOTAL DO SERVIÇO - R$ | I196: =I194*I195 -> 410.8353
A199: COMPOSIÇÃO DE PREÇO UNITÁRIO | I199: CPU0010
A200: DESCRIÇÃO DO SERVIÇO | H200: DATA BASE: | I200: 2025-03-01
A201: REVESTIMENTO DE PAREDES EM CHAPAS DE AÇO INOXIDÁVEL AISI 304 - CONSIDERANDO CHAPA DE 1,2mm | H201: UNIDADE: | I201: M²
A202: APENAS MÃO DE OBRA
A203: BASE | B203: CÓDIGO | C203: DISCRIMINAÇÃO | D203: UNI | E203: QUANT. | H203: P.UNIT. | I203: P.TOTAL
A204: SINAPI | B204: 88317 | C204: SOLDADOR COM ENCARGOS COMPLEMENTARES | D204: h | E204: 0.8 | H204: 29.95 | I204: =E204*H204 -> 23.96
A205: SINAPI | B205: 88315 | C205: SERRALHEIRO COM ENCARGOS COMPLEMENTARES | D205: h | E205: 0.8 | H205: 29.01 | I205: =E205*H205 -> 23.208
A206: SUB-TOTAL | I206: =SUM(I204:I205) -> 47.168
A207: PRODUÇÃO DA EQUIPE | D207: 1 | E207: CUSTO | I207: =I206*D207 -> 47.168
A208: TOTAL - R$ | I208: =I207/D207 -> 47.168
A209: BDI % | I209: 1
A210: TOTAL DO SERVIÇO - R$ | I210: =I208*I209 -> 47.168
A213: COMPOSIÇÃO DE PREÇO UNITÁRIO | I213: CPU011
A214: DESCRIÇÃO DO SERVIÇO | H214: DATA BASE: | I214: 2025-03-01
A215: GUARDA-CORPO DE AÇO CARBONO, MONTANTES TUBULARES DE 1.1/2" ESPAÇADOS EM 0,75M, ALTURA APROXIMADA DE 0,90M, PREPARADO COM FUNDO E TINTA EPÓXI NA COR AMARELA | H215: UNIDADE: | I215: m
A216: MATERIAL
A217: BASE | B217: CÓDIGO | C217: DISCRIMINAÇÃO | D217: UNI | E217: QUANT. | H217: P.UNIT. | I217: P.TOTAL
A218: SINAPI | B218: 1332 | C218: CHAPA DE ACO GROSSA, ASTM A36, E = 3/8 " (9,53 MM) 74,69 KG/M2 | D218: KG | E218: 0,8960000 | H218: 9.4 | I218: =E218*H218 -> 8.4224
... 67 more rows
